Publisher Label,Publisher URI,"Supplier","Net Amount (£)","Organisational Unit","Merchant Category Code","Purpose","Payment Date"
"Wolverhampton City Council","http://opendatacommunities.org/id/metropolitan-district-council/wolverhampton","WWW.SEVERNTRENTSEARCHE","348.00","Legal Services","4900","Electricity","30/12/2016"
"Wolverhampton City Council","http://opendatacommunities.org/id/metropolitan-district-council/wolverhampton","CANNON RACEWAY","40.00","Upper Pendeford Farm Childrens Home","7299","Services - Supplies & Services to users","30/12/2016"
"Wolverhampton City Council","http://opendatacommunities.org/id/metropolitan-district-council/wolverhampton","WWW.WHEELFREEDOM.COM","30.00","CIN/CP S17 SW Unit - Area 8","5968","Subscriptions","30/12/2016"
"Wolverhampton City Council","http://opendatacommunities.org/id/metropolitan-district-council/wolverhampton","BARCLAYS BANK PLC","250.00","CIN/CP S17 SW Unit - Area 6","6011","Financial Assistance In Exceptional Circ","30/12/2016"
"Wolverhampton City Council","http://opendatacommunities.org/id/metropolitan-district-council/wolverhampton","WEST COAST TRAINS","32.60","Quality Assurance & Policies","4112","Public Transport","30/12/2016"
"Wolverhampton City Council","http://opendatacommunities.org/id/metropolitan-district-council/wolverhampton","DC PAYMENTS","30.00","EIP Locality 2","6011","Financial Assistance In Exceptional Circ","30/12/2016"
"Wolverhampton City Council","http://opendatacommunities.org/id/metropolitan-district-council/wolverhampton","HM PASSPORT OFFICE","92.00","LAC Team","9399","Financial Assistance In Exceptional Circ","30/12/2016"
"Wolverhampton City Council","http://opendatacommunities.org/id/metropolitan-district-council/wolverhampton","SAINSBURYS 2040","80.00","Ernest Bold Court","5411","Equipment - Purchase","30/12/2016"
"Wolverhampton City Council","http://opendatacommunities.org/id/metropolitan-district-council/wolverhampton","EE & T-MOBILE","134.53","Civic Halls Non Direct Management A/C","4814","Comms - Telephone Call charges","30/12/2016"
"Wolverhampton City Council","http://opendatacommunities.org/id/metropolitan-district-council/wolverhampton","WWW.SEVERNTRENTSEARCHE","348.00","Legal Services","4900","Electricity","30/12/2016"
"Wolverhampton City Council","http://opendatacommunities.org/id/metropolitan-district-council/wolverhampton","WWW.SEVERNTRENTSEARCHE","348.00","Legal Services","4900","Electricity","30/12/2016"
"Wolverhampton City Council","http://opendatacommunities.org/id/metropolitan-district-council/wolverhampton","WWW.SEVERNTRENTSEARCHE","348.00","Legal Services","4900","Electricity","30/12/2016"
"Wolverhampton City Council","http://opendatacommunities.org/id/metropolitan-district-council/wolverhampton","WWW.SEVERNTRENTSEARCHE","348.00","Legal Services","4900","Electricity","30/12/2016"
"Wolverhampton City Council","http://opendatacommunities.org/id/metropolitan-district-council/wolverhampton","WWW.SEVERNTRENTSEARCHE","348.00","Legal Services","4900","Electricity","30/12/2016"
"Wolverhampton City Council","http://opendatacommunities.org/id/metropolitan-district-council/wolverhampton","WWW.SEVERNTRENTSEARCHE","348.00","Legal Services","4900","Electricity","30/12/2016"
"Wolverhampton City Council","http://opendatacommunities.org/id/metropolitan-district-council/wolverhampton","WWW.SEVERNTRENTSEARCHE","348.00","Legal Services","4900","Electricity","30/12/2016"
"Wolverhampton City Council","http://opendatacommunities.org/id/metropolitan-district-council/wolverhampton","PREMIER INN","169.14","Adoption and Residence Team & Allowances","3811","Accommodation Costs","30/12/2016"
"Wolverhampton City Council","http://opendatacommunities.org/id/metropolitan-district-council/wolverhampton","PREMIER INN","153.31","Adoption and Residence Team & Allowances","3811","Accommodation Costs","30/12/2016"
"Wolverhampton City Council","http://opendatacommunities.org/id/metropolitan-district-council/wolverhampton","NRS HEALTHCARE","45.40","Central Baths","5047","Equipment - Purchase","30/12/2016"
"Wolverhampton City Council","http://opendatacommunities.org/id/metropolitan-district-council/wolverhampton","REGISTRARS OFFICE","7.00","Head of Service - CINCP","8299","Services - Professional Fees","29/12/2016"
"Wolverhampton City Council","http://opendatacommunities.org/id/metropolitan-district-council/wolverhampton","REGISTRARS OFFICE","60.00","Head of Service - CINCP","8299","Services - Professional Fees","29/12/2016"
"Wolverhampton City Council","http://opendatacommunities.org/id/metropolitan-district-council/wolverhampton","Amazon Prime","7.99","Ground Maintenance Overheads","5968","Subscriptions","29/12/2016"
"Wolverhampton City Council","http://opendatacommunities.org/id/metropolitan-district-council/wolverhampton","ARGOS RETAIL GROUP","-19.98","EIP Locality 6","5310","Equipment - Purchase","29/12/2016"
"Wolverhampton City Council","http://opendatacommunities.org/id/metropolitan-district-council/wolverhampton","BODYCARE H/BEAUTY","1.59","Business Manager - Place","5977","First Aid Requisites","29/12/2016"
"Wolverhampton City Council","http://opendatacommunities.org/id/metropolitan-district-council/wolverhampton","Amazon UK Marketplace","13.98","Strategic ICTS (ICT Serv Budget)","5942","Cleaning Supplies and Materials","29/12/2016"
"Wolverhampton City Council","http://opendatacommunities.org/id/metropolitan-district-council/wolverhampton","ITUNES.COM/BILL","0.79","Strategic ICTS (ICT Serv Budget)","5735","Computing - Purchase of Software","29/12/2016"
"Wolverhampton City Council","http://opendatacommunities.org/id/metropolitan-district-council/wolverhampton","ASDA HOME SHOPPING","-0.28","Ernest Bold Court","5411","Provisions (Not for resale)","29/12/2016"
"Wolverhampton City Council","http://opendatacommunities.org/id/metropolitan-district-council/wolverhampton","ASDA HOME SHOPPING","86.78","Ernest Bold Court","5411","Provisions (Not for resale)","29/12/2016"
"Wolverhampton City Council","http://opendatacommunities.org/id/metropolitan-district-council/wolverhampton","WWW.VIPDIARIES.CO.UK","7.15","Inclusion Support","5999","Equipment - Purchase","29/12/2016"
"Wolverhampton City Council","http://opendatacommunities.org/id/metropolitan-district-council/wolverhampton","TVLICENSING.CO.UK","145.50","LAC Transitions Team","7392","Client Allowances","26/12/2016"
"Wolverhampton City Council","http://opendatacommunities.org/id/metropolitan-district-council/wolverhampton","E01510300000000","50.00","Emergency Duty Team","6011","Financial Assistance In Exceptional Circ","26/12/2016"
"Wolverhampton City Council","http://opendatacommunities.org/id/metropolitan-district-council/wolverhampton","E01510300000000","250.00","Emergency Duty Team","6011","Financial Assistance In Exceptional Circ","26/12/2016"
"Wolverhampton City Council","http://opendatacommunities.org/id/metropolitan-district-council/wolverhampton","Klarna/Lsect Ltd","81.00","Service Wide","5999","Books","26/12/2016"
"Wolverhampton City Council","http://opendatacommunities.org/id/metropolitan-district-council/wolverhampton","Amazon Prime","79.00","Pupil Premium","5968","Subscriptions","26/12/2016"
"Wolverhampton City Council","http://opendatacommunities.org/id/metropolitan-district-council/wolverhampton","SAINSBURYS PFS (1340)","30.02","Economic Development","5541","Public Transport","26/12/2016"
"Wolverhampton City Council","http://opendatacommunities.org/id/metropolitan-district-council/wolverhampton","ARGOS DIRECT","36.46","CIN/CP S17 SW Unit - Area 4","5964","Equipment - Purchase","26/12/2016"
"Wolverhampton City Council","http://opendatacommunities.org/id/metropolitan-district-council/wolverhampton","SAINSBURYS 2040","18.28","Duke Street Bungalows","5411","Provisions (Not for resale)","26/12/2016"
"Wolverhampton City Council","http://opendatacommunities.org/id/metropolitan-district-council/wolverhampton","SAINSBURYS 2040","42.25","Duke Street Bungalows","5411","Provisions (Not for resale)","26/12/2016"
"Wolverhampton City Council","http://opendatacommunities.org/id/metropolitan-district-council/wolverhampton","AMAZON UK RETAIL AMAZO","16.65","Members Expenses","5999","Equipment - Purchase","26/12/2016"
"Wolverhampton City Council","http://opendatacommunities.org/id/metropolitan-district-council/wolverhampton","Amazon Prime","7.99","Technical Support","5968","Subscriptions","23/12/2016"
"Wolverhampton City Council","http://opendatacommunities.org/id/metropolitan-district-council/wolverhampton","W M MORRISON PLC","19.58","Ernest Bold Court","5411","Provisions (Not for resale)","23/12/2016"
"Wolverhampton City Council","http://opendatacommunities.org/id/metropolitan-district-council/wolverhampton","Amazon EU","29.99","Members Expenses","5969","Equipment - Purchase","23/12/2016"
"Wolverhampton City Council","http://opendatacommunities.org/id/metropolitan-district-council/wolverhampton","AMAZON UK RETAIL AMAZO","10.37","Jane & Louise Wilson","5999","Books","23/12/2016"
"Wolverhampton City Council","http://opendatacommunities.org/id/metropolitan-district-council/wolverhampton","HSE BOOKS (INTERNET)","13.20","Art Gallery","9399","Stationery","23/12/2016"
"Wolverhampton City Council","http://opendatacommunities.org/id/metropolitan-district-council/wolverhampton","BUILD A BEAR WORKSHOP","47.71","Education Catering - General Overheads","5999","Marketing \ Non-staff advertising","23/12/2016"
"Wolverhampton City Council","http://opendatacommunities.org/id/metropolitan-district-council/wolverhampton","CO-OPERATIVE FOOD","6.60","CIN/CP S17 SW Unit - Area 7","5411","Provisions (Not for resale)","23/12/2016"
"Wolverhampton City Council","http://opendatacommunities.org/id/metropolitan-district-council/wolverhampton","GET THE MAG","47.49","Fleet Management","2741","Subscriptions","23/12/2016"
"Wolverhampton City Council","http://opendatacommunities.org/id/metropolitan-district-council/wolverhampton","Virgin Trains","36.46","CIN/CP S17 SW Unit - Area 1","4112","Public Transport","23/12/2016"
"Wolverhampton City Council","http://opendatacommunities.org/id/metropolitan-district-council/wolverhampton","REGISTRARS OFFICE","10.00","IMPACT","8299","Financial Assistance In Exceptional Circ","23/12/2016"
"Wolverhampton City Council","http://opendatacommunities.org/id/metropolitan-district-council/wolverhampton","WEBSTAFF/ATP PAYMENTS","111.42","LAC Transitions Team","9399","Client Allowances","23/12/2016"
"Wolverhampton City Council","http://opendatacommunities.org/id/metropolitan-district-council/wolverhampton","SAFETYSHOP","281.39","Aldersley Leisure Village","5099","Equipment - Purchase","23/12/2016"
"Wolverhampton City Council","http://opendatacommunities.org/id/metropolitan-district-council/wolverhampton","FACEBK XG4PGBJAR2","200.11","Communications & Marketing - General","7311","Marketing \ Non-staff advertising","23/12/2016"
"Wolverhampton City Council","http://opendatacommunities.org/id/metropolitan-district-council/wolverhampton","THE NEW BRIDGE GUEST H","50.00","Emergency Duty Team","7011","Services - Supplies & Services to users","23/12/2016"
"Wolverhampton City Council","http://opendatacommunities.org/id/metropolitan-district-council/wolverhampton","Amazon UK Marketplace","8.52","Expenditure","5942","Books","23/12/2016"
"Wolverhampton City Council","http://opendatacommunities.org/id/metropolitan-district-council/wolverhampton","SAINSBURYS","10.00","Ernest Bold Court","6011","Cleaning Supplies and Materials","23/12/2016"
"Wolverhampton City Council","http://opendatacommunities.org/id/metropolitan-district-council/wolverhampton","Trainline","81.80","Ambrosia Project","4112","Public Transport","23/12/2016"
"Wolverhampton City Council","http://opendatacommunities.org/id/metropolitan-district-council/wolverhampton","WILKO.COM","78.29","Artist Rooms","5722","Materials","23/12/2016"
"Wolverhampton City Council","http://opendatacommunities.org/id/metropolitan-district-council/wolverhampton","POST OFFICE COUNTER","7.68","Telecare","9402","Comms - Postage","23/12/2016"
"Wolverhampton City Council","http://opendatacommunities.org/id/metropolitan-district-council/wolverhampton","SEVERN TRENT WATER","33.10","LAC Transitions Team","4900","Client Allowances","23/12/2016"
"Wolverhampton City Council","http://opendatacommunities.org/id/metropolitan-district-council/wolverhampton","ERF ELECTRICAL","4.62","EIP Locality 1","5722","Equipment - Purchase","22/12/2016"
"Wolverhampton City Council","http://opendatacommunities.org/id/metropolitan-district-council/wolverhampton","Amazon UK Marketplace","6.99","Expenditure","5942","Books","22/12/2016"
"Wolverhampton City Council","http://opendatacommunities.org/id/metropolitan-district-council/wolverhampton","WILKO RETAIL LIMIT","11.90","Central Costs","5722","Equipment - Purchase","22/12/2016"
"Wolverhampton City Council","http://opendatacommunities.org/id/metropolitan-district-council/wolverhampton","THE NEW BRIDGE GUEST H","50.00","LAC Transitions Team","7011","Services - Supplies & Services to users","22/12/2016"
"Wolverhampton City Council","http://opendatacommunities.org/id/metropolitan-district-council/wolverhampton","Trainline","60.18","CIN/CP S17 SW Unit - Area 2","4112","Public Transport","22/12/2016"
"Wolverhampton City Council","http://opendatacommunities.org/id/metropolitan-district-council/wolverhampton","TESCO STORES 5397","7.63","EIP Locality 1","5411","Comms - Postage","22/12/2016"
"Wolverhampton City Council","http://opendatacommunities.org/id/metropolitan-district-council/wolverhampton","ARGOS RETAIL GROUP","284.99","LAC Team","5310","Financial Assistance In Exceptional Circ","22/12/2016"
"Wolverhampton City Council","http://opendatacommunities.org/id/metropolitan-district-council/wolverhampton","ASDA HOME SHOPPING","-0.29","Ernest Bold Court","5411","Provisions (Not for resale)","22/12/2016"
"Wolverhampton City Council","http://opendatacommunities.org/id/metropolitan-district-council/wolverhampton","VERIFONE TAXI/PRIVATE","6.60","CIN/CP S17 SW Unit - Area 6","4121","Client Transport","22/12/2016"
"Wolverhampton City Council","http://opendatacommunities.org/id/metropolitan-district-council/wolverhampton","Amazon EU","7.24","Jane & Louise Wilson","5969","Books","22/12/2016"
"Wolverhampton City Council","http://opendatacommunities.org/id/metropolitan-district-council/wolverhampton","Amazon EU","20.04","Jane & Louise Wilson","5969","Books","22/12/2016"
"Wolverhampton City Council","http://opendatacommunities.org/id/metropolitan-district-council/wolverhampton","THE POST OFFICE","3.48","CIN/CP S17 SW Unit - Area 4","9402","Comms - Postage","22/12/2016"
"Wolverhampton City Council","http://opendatacommunities.org/id/metropolitan-district-council/wolverhampton","PSU","677.00","Mayoral Expenses","8220","Hospitality","22/12/2016"
"Wolverhampton City Council","http://opendatacommunities.org/id/metropolitan-district-council/wolverhampton","TRAVELODGE","52.00","Fostering Team & Allowances","3615","Services - Supplies & Services to users","22/12/2016"
"Wolverhampton City Council","http://opendatacommunities.org/id/metropolitan-district-council/wolverhampton","Virgin Trains","219.00","Fostering Team & Allowances","4112","Public Transport","22/12/2016"
"Wolverhampton City Council","http://opendatacommunities.org/id/metropolitan-district-council/wolverhampton","HINTON PERRY AND D","123.90","Patching","5211","Materials","22/12/2016"
"Wolverhampton City Council","http://opendatacommunities.org/id/metropolitan-district-council/wolverhampton","B&M RETAIL LTD","5.64","LAC Transitions Team","5310","Client Allowances","22/12/2016"
"Wolverhampton City Council","http://opendatacommunities.org/id/metropolitan-district-council/wolverhampton","ALDI","42.59","LAC Transitions Team","5411","Client Allowances","22/12/2016"
"Wolverhampton City Council","http://opendatacommunities.org/id/metropolitan-district-council/wolverhampton","SAINSBURYS 2040","6.00","LAC Transitions Team","5411","Client Allowances","22/12/2016"
"Wolverhampton City Council","http://opendatacommunities.org/id/metropolitan-district-council/wolverhampton","ARGOS RETAIL GROUP","149.99","EIP Locality 6","5310","Equipment - Purchase","22/12/2016"
"Wolverhampton City Council","http://opendatacommunities.org/id/metropolitan-district-council/wolverhampton","ARGOS RETAIL GROUP","19.98","EIP Locality 6","5310","Equipment - Purchase","22/12/2016"
"Wolverhampton City Council","http://opendatacommunities.org/id/metropolitan-district-council/wolverhampton","ARGOS DIRECT","-120.78","EIP Locality 4","5310","Grant Payments","22/12/2016"
"Wolverhampton City Council","http://opendatacommunities.org/id/metropolitan-district-council/wolverhampton","THE POST OFFICE","220.00","IMPACT","9402","Financial Assistance In Exceptional Circ","22/12/2016"
"Wolverhampton City Council","http://opendatacommunities.org/id/metropolitan-district-council/wolverhampton","AMAZON UK RETAIL AMAZO","151.78","Expenditure","5999","Equipment - Purchase","22/12/2016"
"Wolverhampton City Council","http://opendatacommunities.org/id/metropolitan-district-council/wolverhampton","AMAZON UK RETAIL AMAZO","43.75","Arbor Scheme","5999","Materials","21/12/2016"
"Wolverhampton City Council","http://opendatacommunities.org/id/metropolitan-district-council/wolverhampton","Amazon EU","16.91","Arbor Scheme","5969","Materials","21/12/2016"
"Wolverhampton City Council","http://opendatacommunities.org/id/metropolitan-district-council/wolverhampton","Amazon UK Marketplace","16.98","Arbor Scheme","5942","Materials","21/12/2016"
"Wolverhampton City Council","http://opendatacommunities.org/id/metropolitan-district-council/wolverhampton","TFM FARM & COUNTRY SUP","190.38","Northicote Farm","5399","Equipment - Purchase","21/12/2016"
"Wolverhampton City Council","http://opendatacommunities.org/id/metropolitan-district-council/wolverhampton","M and M Direct Ltd","39.48","EIP Locality 6","5941","Equipment - Purchase","21/12/2016"
"Wolverhampton City Council","http://opendatacommunities.org/id/metropolitan-district-council/wolverhampton","TVLICENSING.CO.UK","145.50","LAC Transitions Team","7392","Client Allowances","21/12/2016"
"Wolverhampton City Council","http://opendatacommunities.org/id/metropolitan-district-council/wolverhampton","AMAZON UK RETAIL AMAZO","17.79","Expenditure","5999","Equipment - Purchase","21/12/2016"
"Wolverhampton City Council","http://opendatacommunities.org/id/metropolitan-district-council/wolverhampton","WWW.EVAQ8.CO.UK","95.56","Expenditure","5941","Equipment - Purchase","21/12/2016"
"Wolverhampton City Council","http://opendatacommunities.org/id/metropolitan-district-council/wolverhampton","Amazon EU","17.79","Expenditure","5969","Equipment - Purchase","21/12/2016"
"Wolverhampton City Council","http://opendatacommunities.org/id/metropolitan-district-council/wolverhampton","Amazon EU","17.79","Expenditure","5969","Equipment - Purchase","21/12/2016"
"Wolverhampton City Council","http://opendatacommunities.org/id/metropolitan-district-council/wolverhampton","Amazon EU","17.80","Expenditure","5969","Equipment - Purchase","21/12/2016"
"Wolverhampton City Council","http://opendatacommunities.org/id/metropolitan-district-council/wolverhampton","Amazon UK Marketplace","13.16","Expenditure","5942","Books","21/12/2016"
"Wolverhampton City Council","http://opendatacommunities.org/id/metropolitan-district-council/wolverhampton","E01350800000000","20.00","Ernest Bold Court","6011","Financial Assistance In Exceptional Circ","21/12/2016"
"Wolverhampton City Council","http://opendatacommunities.org/id/metropolitan-district-council/wolverhampton","CARVER/WOLVERHAMPTON/L","42.47","Priory Green","5211","R&M - Departmental planned (external)","21/12/2016"
"Wolverhampton City Council","http://opendatacommunities.org/id/metropolitan-district-council/wolverhampton","NOTEMACHINE","80.00","EIP Locality 3","6011","Financial Assistance In Exceptional Circ","21/12/2016"
"Wolverhampton City Council","http://opendatacommunities.org/id/metropolitan-district-council/wolverhampton","ASDA HOME SHOPPING","87.93","Ernest Bold Court","5411","Provisions (Not for resale)","21/12/2016"
"Wolverhampton City Council","http://opendatacommunities.org/id/metropolitan-district-council/wolverhampton","NETWORK WEST MIDLANDS","288.00","CIN/CP S17 SW Unit - Area 5","9399","Public Transport","21/12/2016"
"Wolverhampton City Council","http://opendatacommunities.org/id/metropolitan-district-council/wolverhampton","THE POST OFFICE","55.00","CIN/CP S17 SW Unit - Area 5","9402","Comms - Postage","21/12/2016"
"Wolverhampton City Council","http://opendatacommunities.org/id/metropolitan-district-council/wolverhampton","ARGOS RETAIL GROUP","42.99","CIN/CP S17 SW Unit - Area 4","5310","Equipment - Purchase","21/12/2016"
"Wolverhampton City Council","http://opendatacommunities.org/id/metropolitan-district-council/wolverhampton","THE POST OFFICE","16.05","CIN/CP S17 SW Unit - Area 4","9402","Comms - Postage","21/12/2016"
"Wolverhampton City Council","http://opendatacommunities.org/id/metropolitan-district-council/wolverhampton","WWW.THEWORKS.CO.UK","7.50","Welfare Rights","5310","Stationery","21/12/2016"
"Wolverhampton City Council","http://opendatacommunities.org/id/metropolitan-district-council/wolverhampton","ARGOS LTD","8.32","Macmillan Welfare Rights","5310","Stationery","21/12/2016"
"Wolverhampton City Council","http://opendatacommunities.org/id/metropolitan-district-council/wolverhampton","PAYPAL  BUNZLRETAIL","71.96","Ernest Bold Court","5047","Services - Professional Fees","21/12/2016"
"Wolverhampton City Council","http://opendatacommunities.org/id/metropolitan-district-council/wolverhampton","SAINSBURYS 2040","32.79","Mayoral Expenses","5411","Hospitality","21/12/2016"
"Wolverhampton City Council","http://opendatacommunities.org/id/metropolitan-district-council/wolverhampton","AAIA","80.00","School Improvement","8299","Training Expenses","21/12/2016"
"Wolverhampton City Council","http://opendatacommunities.org/id/metropolitan-district-council/wolverhampton","HUGHES","204.99","EIP Locality 3","5732","Financial Assistance In Exceptional Circ","21/12/2016"
"Wolverhampton City Council","http://opendatacommunities.org/id/metropolitan-district-council/wolverhampton","UNTOUCHABLES","3.33","Cemeteries","5231","Equipment - Purchase","20/12/2016"
"Wolverhampton City Council","http://opendatacommunities.org/id/metropolitan-district-council/wolverhampton","CREATIVE FRAMING","56.99","Cemeteries","5971","Equipment - Purchase","20/12/2016"
"Wolverhampton City Council","http://opendatacommunities.org/id/metropolitan-district-council/wolverhampton","ASDA SUPERSTORE","15.82","LAC Transitions Team","5411","Client Allowances","20/12/2016"
"Wolverhampton City Council","http://opendatacommunities.org/id/metropolitan-district-council/wolverhampton","ARGOS RETAIL GROUP","120.78","EIP Locality 4","5310","Grant Payments","20/12/2016"
"Wolverhampton City Council","http://opendatacommunities.org/id/metropolitan-district-council/wolverhampton","B & Q 1276","15.00","LAC Transitions Team","5211","Client Allowances","20/12/2016"
"Wolverhampton City Council","http://opendatacommunities.org/id/metropolitan-district-council/wolverhampton","IKEA LIMITED","27.00","LAC Transitions Team","5712","Client Allowances","20/12/2016"
"Wolverhampton City Council","http://opendatacommunities.org/id/metropolitan-district-council/wolverhampton","SAINSBURYS (2340)","16.91","Intensive Family Support Team","5411","Provisions (Not for resale)","20/12/2016"
"Wolverhampton City Council","http://opendatacommunities.org/id/metropolitan-district-council/wolverhampton","WOLVERHAMPTON CITY COU","63.50","LAC Transitions Team","9399","Client Allowances","20/12/2016"
"Wolverhampton City Council","http://opendatacommunities.org/id/metropolitan-district-council/wolverhampton","WWW.REED.CO.UK","398.00","Information Management","7361","Staff Advertising Costs","20/12/2016"
"Wolverhampton City Council","http://opendatacommunities.org/id/metropolitan-district-council/wolverhampton","HOME BARGAINS","3.76","CIN/CP S17 SW Unit - Area 7","5251","Equipment - Purchase","20/12/2016"
"Wolverhampton City Council","http://opendatacommunities.org/id/metropolitan-district-council/wolverhampton","PEAR TREE INN","108.33","Workforce Development","7011","Accommodation Costs","20/12/2016"
"Wolverhampton City Council","http://opendatacommunities.org/id/metropolitan-district-council/wolverhampton","OPEN FORUM EVENTS","230.00","Member Training","7922","Training Expenses","20/12/2016"
"Wolverhampton City Council","http://opendatacommunities.org/id/metropolitan-district-council/wolverhampton","ARGOS RETAIL GROUP","39.98","Childrens Wkforce Dev Integr Wking Grant","5310","Equipment - Purchase","20/12/2016"
"Wolverhampton City Council","http://opendatacommunities.org/id/metropolitan-district-council/wolverhampton","Virgin Trains","190.40","Adoption and Residence Team & Allowances","4112","Public Transport","20/12/2016"
"Wolverhampton City Council","http://opendatacommunities.org/id/metropolitan-district-council/wolverhampton","Amazon UK Marketplace","2.91","Arbor Scheme","5942","Materials","20/12/2016"
"Wolverhampton City Council","http://opendatacommunities.org/id/metropolitan-district-council/wolverhampton","CURRYS S/S","39.54","LAC Transitions Team","5732","Client Allowances","20/12/2016"
"Wolverhampton City Council","http://opendatacommunities.org/id/metropolitan-district-council/wolverhampton","REGISTRARS OFFICE","50.00","Adoption and Residence Team & Allowances","8299","Services - Fees and Charges","20/12/2016"
"Wolverhampton City Council","http://opendatacommunities.org/id/metropolitan-district-council/wolverhampton","WWW.BCLM.CO.UK","-32.00","EIP Locality 7","7999","Educ Trips, Holidays, Outings, Activity","20/12/2016"
"Wolverhampton City Council","http://opendatacommunities.org/id/metropolitan-district-council/wolverhampton","WWW.BCLM.CO.UK","-6.00","EIP Locality 7","7999","Educ Trips, Holidays, Outings, Activity","20/12/2016"
"Wolverhampton City Council","http://opendatacommunities.org/id/metropolitan-district-council/wolverhampton","WWW.BCLM.CO.UK","20.00","EIP Locality 7","7999","Educ Trips, Holidays, Outings, Activity","20/12/2016"
"Wolverhampton City Council","http://opendatacommunities.org/id/metropolitan-district-council/wolverhampton","Akzonobel","180.56","Contemporary Gallery","5198","Materials","20/12/2016"
"Wolverhampton City Council","http://opendatacommunities.org/id/metropolitan-district-council/wolverhampton","TIMPSON LTD","27.00","Central Costs","7251","Fixtures and Fittings - R&M","20/12/2016"
"Wolverhampton City Council","http://opendatacommunities.org/id/metropolitan-district-council/wolverhampton","SAINSBURYS","250.00","EIP Locality 8","6011","Financial Assistance In Exceptional Circ","20/12/2016"
"Wolverhampton City Council","http://opendatacommunities.org/id/metropolitan-district-council/wolverhampton","SEVERN TRENT WATER","44.17","LAC Transitions Team","4900","Client Allowances","20/12/2016"
"Wolverhampton City Council","http://opendatacommunities.org/id/metropolitan-district-council/wolverhampton","OAKES LEISURE LTD","65.60","Wolverhampton Indoor and Open Market","5945","Equipment - Purchase","20/12/2016"
"Wolverhampton City Council","http://opendatacommunities.org/id/metropolitan-district-council/wolverhampton","OAKES LEISURE LTD","250.00","Wolverhampton Indoor and Open Market","5945","Equipment - Purchase","20/12/2016"
"Wolverhampton City Council","http://opendatacommunities.org/id/metropolitan-district-council/wolverhampton","TESCO STORES 5397","7.68","EIP Locality 1","5411","Financial Assistance In Exceptional Circ","20/12/2016"
"Wolverhampton City Council","http://opendatacommunities.org/id/metropolitan-district-council/wolverhampton","TESCO STORES 5397","6.67","EIP Locality 1","5411","Provisions (Not for resale)","20/12/2016"
"Wolverhampton City Council","http://opendatacommunities.org/id/metropolitan-district-council/wolverhampton","E01510300000000","40.00","EIP Locality 2","6011","Financial Assistance In Exceptional Circ","20/12/2016"
"Wolverhampton City Council","http://opendatacommunities.org/id/metropolitan-district-council/wolverhampton","TESCO DELIVERY SAVER2","2.50","Towers Outdoor Education Centre","5968","Subscriptions","20/12/2016"
"Wolverhampton City Council","http://opendatacommunities.org/id/metropolitan-district-council/wolverhampton","WWW.GOV.UK","10.00","Financial Assessments","8999","Services - Professional Fees","20/12/2016"
"Wolverhampton City Council","http://opendatacommunities.org/id/metropolitan-district-council/wolverhampton","123-REG.CO.UK","13.98","Technical Support","4816","Computing - Purchase of Software","20/12/2016"
"Wolverhampton City Council","http://opendatacommunities.org/id/metropolitan-district-council/wolverhampton","Amazon UK Marketplace","69.32","Learning Technologies","5942","Books","20/12/2016"
"Wolverhampton City Council","http://opendatacommunities.org/id/metropolitan-district-council/wolverhampton","ASDA HOME SHOPPING","96.90","Ernest Bold Court","5411","Provisions (Not for resale)","19/12/2016"
"Wolverhampton City Council","http://opendatacommunities.org/id/metropolitan-district-council/wolverhampton","TRAVELINSURANCE ANCILE","69.90","Leonardo Da Vinci Project","5960","Subsistence","19/12/2016"
"Wolverhampton City Council","http://opendatacommunities.org/id/metropolitan-district-council/wolverhampton","CURRYS S/S","196.66","LAC Transitions Team","5732","Client Allowances","19/12/2016"
"Wolverhampton City Council","http://opendatacommunities.org/id/metropolitan-district-council/wolverhampton","CURRYS ONLINE","149.99","CIN/CP S17 SW Unit - Area 4","5732","Equipment - Purchase","19/12/2016"
"Wolverhampton City Council","http://opendatacommunities.org/id/metropolitan-district-council/wolverhampton","Wolverhampton Fair Tra","42.00","Civic Centre Catering","5411","Provisions (Not for resale)","19/12/2016"
"Wolverhampton City Council","http://opendatacommunities.org/id/metropolitan-district-council/wolverhampton","SAINSBURYS (2340)","6.00","Civic Centre Catering","5411","Provisions (Not for resale)","19/12/2016"
"Wolverhampton City Council","http://opendatacommunities.org/id/metropolitan-district-council/wolverhampton","WM MORRISON FOOD.COM","223.72","Upper Pendeford Farm Childrens Home","5411","Provisions (Not for resale)","19/12/2016"
"Wolverhampton City Council","http://opendatacommunities.org/id/metropolitan-district-council/wolverhampton","Amazon UK Marketplace","25.02","Children & Family Contact Services","5942","Equipment - Purchase","19/12/2016"
"Wolverhampton City Council","http://opendatacommunities.org/id/metropolitan-district-council/wolverhampton","WOLVES CC","403.00","Physical & Sensory Disabilities Mgmt","9399","Services - Fees and Charges","19/12/2016"
"Wolverhampton City Council","http://opendatacommunities.org/id/metropolitan-district-council/wolverhampton","WM MORRISONS","12.33","CIN/CP S17 SW Unit - Area 6","5411","No Recourse to Public Funds","19/12/2016"
"Wolverhampton City Council","http://opendatacommunities.org/id/metropolitan-district-council/wolverhampton","ARGOS RETAIL GROUP","37.93","CIN/CP S17 SW Unit - Area 6","5310","No Recourse to Public Funds","19/12/2016"
"Wolverhampton City Council","http://opendatacommunities.org/id/metropolitan-district-council/wolverhampton","Amazon UK Marketplace","6.25","Children & Family Contact Services","5942","Books","19/12/2016"
"Wolverhampton City Council","http://opendatacommunities.org/id/metropolitan-district-council/wolverhampton","Amazon UK Marketplace","0.71","Children & Family Contact Services","5942","Equipment - Purchase","19/12/2016"
"Wolverhampton City Council","http://opendatacommunities.org/id/metropolitan-district-council/wolverhampton","Amazon UK Marketplace","11.24","Children & Family Contact Services","5942","Equipment - Purchase","19/12/2016"
"Wolverhampton City Council","http://opendatacommunities.org/id/metropolitan-district-council/wolverhampton","THE FLOWER STALL","20.83","Mayoral Expenses","5992","Hospitality","19/12/2016"
"Wolverhampton City Council","http://opendatacommunities.org/id/metropolitan-district-council/wolverhampton","NOTEMACHINE","250.00","CIN/CP S17 SW Unit - Area 6","6011","Financial Assistance In Exceptional Circ","19/12/2016"
"Wolverhampton City Council","http://opendatacommunities.org/id/metropolitan-district-council/wolverhampton","HILLS COACHES LTD","206.00","EIP Locality 7","7512","Educ Trips, Holidays, Outings, Activity","19/12/2016"
"Wolverhampton City Council","http://opendatacommunities.org/id/metropolitan-district-council/wolverhampton","WICKES BUILDING","56.48","Contemporary Gallery","5211","Materials","19/12/2016"
"Wolverhampton City Council","http://opendatacommunities.org/id/metropolitan-district-council/wolverhampton","WWW.MAPLIN.CO.UK","-24.99","Licensing - General","5732","Equipment - Purchase","19/12/2016"
"Wolverhampton City Council","http://opendatacommunities.org/id/metropolitan-district-council/wolverhampton","W M MORRISON PLC","16.73","Ernest Bold Court","5411","Provisions (Not for resale)","19/12/2016"
"Wolverhampton City Council","http://opendatacommunities.org/id/metropolitan-district-council/wolverhampton","ASDA HOME SHOPPING","0.07","Ernest Bold Court","5411","Provisions (Not for resale)","19/12/2016"
"Wolverhampton City Council","http://opendatacommunities.org/id/metropolitan-district-council/wolverhampton","WISEPOPSCOM","40.61","City Direct","7372","Computing - Purchase of Software","19/12/2016"
"Wolverhampton City Council","http://opendatacommunities.org/id/metropolitan-district-council/wolverhampton","VWO.com","48.90","City Direct","7399","Equipment - Purchase","19/12/2016"
"Wolverhampton City Council","http://opendatacommunities.org/id/metropolitan-district-council/wolverhampton","TRELLO","4.13","City Direct","5045","Computing - Purchase of Hardware","19/12/2016"
"Wolverhampton City Council","http://opendatacommunities.org/id/metropolitan-district-council/wolverhampton","WEST MIDLANDS TRAV","-53.00","IMPACT","4131","Public Transport","19/12/2016"
"Wolverhampton City Council","http://opendatacommunities.org/id/metropolitan-district-council/wolverhampton","THE RANGE","53.96","LAC Transitions Team","5311","Client Allowances","19/12/2016"
"Wolverhampton City Council","http://opendatacommunities.org/id/metropolitan-district-council/wolverhampton","B & Q 1243","25.76","LAC Transitions Team","5211","Client Allowances","19/12/2016"
"Wolverhampton City Council","http://opendatacommunities.org/id/metropolitan-district-council/wolverhampton","AMAZON UK RETAIL AMAZO","21.39","Aldersley Leisure Village","5999","Equipment - Purchase","19/12/2016"
"Wolverhampton City Council","http://opendatacommunities.org/id/metropolitan-district-council/wolverhampton","SAFETYSHOP","420.95","Aldersley Leisure Village","5099","Equipment - Purchase","19/12/2016"
"Wolverhampton City Council","http://opendatacommunities.org/id/metropolitan-district-council/wolverhampton","Amazon UK Marketplace","5.25","Bert Williams Leisure Centre","5942","Stationery","19/12/2016"
"Wolverhampton City Council","http://opendatacommunities.org/id/metropolitan-district-council/wolverhampton","SAINSBURYS","250.00","EIP Locality 8","6011","Financial Assistance In Exceptional Circ","19/12/2016"
"Wolverhampton City Council","http://opendatacommunities.org/id/metropolitan-district-council/wolverhampton","WILKO RETAIL LIMIT","25.04","LAC Transitions Team","5722","Client Allowances","19/12/2016"
"Wolverhampton City Council","http://opendatacommunities.org/id/metropolitan-district-council/wolverhampton","POUNDWORLD 308","5.83","LAC Transitions Team","5310","Client Allowances","19/12/2016"
"Wolverhampton City Council","http://opendatacommunities.org/id/metropolitan-district-council/wolverhampton","CASH GENERATOR (W BRO)","16.66","LAC Transitions Team","5931","Client Allowances","19/12/2016"
"Wolverhampton City Council","http://opendatacommunities.org/id/metropolitan-district-council/wolverhampton","AMAZON UK RETAIL AMAZO","19.57","Archives","5999","Books","19/12/2016"
"Wolverhampton City Council","http://opendatacommunities.org/id/metropolitan-district-council/wolverhampton","WWW.VIKING-DIRECT.CO.U","31.49","Archives","5111","Stationery","19/12/2016"
"Wolverhampton City Council","http://opendatacommunities.org/id/metropolitan-district-council/wolverhampton","DUNELM (SOFT FURNISHIN","14.99","Ernest Bold Court","5714","Equipment - Purchase","19/12/2016"
"Wolverhampton City Council","http://opendatacommunities.org/id/metropolitan-district-council/wolverhampton","HOME BARGAINS","34.85","Wolverhampton Indoor and Open Market","5251","Equipment - Purchase","19/12/2016"
"Wolverhampton City Council","http://opendatacommunities.org/id/metropolitan-district-council/wolverhampton","NOTEMACHINE","10.00","EIP Locality 1","6011","Financial Assistance In Exceptional Circ","19/12/2016"
"Wolverhampton City Council","http://opendatacommunities.org/id/metropolitan-district-council/wolverhampton","SAFETYSHOP","16.36","Aldersley Leisure Village","5099","Equipment - Purchase","16/12/2016"
"Wolverhampton City Council","http://opendatacommunities.org/id/metropolitan-district-council/wolverhampton","Virgin Trains","88.90","LAC Team","4112","Public Transport","16/12/2016"
"Wolverhampton City Council","http://opendatacommunities.org/id/metropolitan-district-council/wolverhampton","WILKO RETAIL LIMIT","6.00","Central Costs","5722","Equipment - Purchase","16/12/2016"
"Wolverhampton City Council","http://opendatacommunities.org/id/metropolitan-district-council/wolverhampton","WM MORRISON 063","2.50","Headstart Phase 3","5411","Provisions (Not for resale)","16/12/2016"
"Wolverhampton City Council","http://opendatacommunities.org/id/metropolitan-district-council/wolverhampton","WM MORRISON 063","62.92","Headstart Phase 3","5411","Provisions (Not for resale)","16/12/2016"
"Wolverhampton City Council","http://opendatacommunities.org/id/metropolitan-district-council/wolverhampton","POUNDLAND LTD 1463","8.00","Ernest Bold Court","5310","Equipment - Purchase","16/12/2016"
"Wolverhampton City Council","http://opendatacommunities.org/id/metropolitan-district-council/wolverhampton","WEST COAST TRAINS","5.42","Education And Access","4112","Public Transport","16/12/2016"
"Wolverhampton City Council","http://opendatacommunities.org/id/metropolitan-district-council/wolverhampton","Trainline","60.18","CIN/CP S17 SW Unit - Area 2","4112","Public Transport","16/12/2016"
"Wolverhampton City Council","http://opendatacommunities.org/id/metropolitan-district-council/wolverhampton","SCREWFIX DIRECT LT","22.90","Cleaning of Buildings - General","5211","Materials","16/12/2016"
"Wolverhampton City Council","http://opendatacommunities.org/id/metropolitan-district-council/wolverhampton","REYNERS DISCOUNT NURSE","59.92","EIP Locality 1","5641","Equipment - Purchase","16/12/2016"
"Wolverhampton City Council","http://opendatacommunities.org/id/metropolitan-district-council/wolverhampton","MOBI TECHNO LTD","200.00","Learning Technologies","4812","Comms - Mobile Telephones","16/12/2016"
"Wolverhampton City Council","http://opendatacommunities.org/id/metropolitan-district-council/wolverhampton","Amazon UK Marketplace","93.31","Technical Support","5942","Equipment - Purchase","16/12/2016"
"Wolverhampton City Council","http://opendatacommunities.org/id/metropolitan-district-council/wolverhampton","CT HOME WEDNESFIELD","120.00","CIN/CP S17 SW Unit - Area 5","8398","Services - Supplies & Services to users","16/12/2016"
"Wolverhampton City Council","http://opendatacommunities.org/id/metropolitan-district-council/wolverhampton","BRITISH HEART FOUNDATI","195.83","LAC Transitions Team","8398","Client Allowances","16/12/2016"
"Wolverhampton City Council","http://opendatacommunities.org/id/metropolitan-district-council/wolverhampton","DUNELM (SOFT FURNISHIN","-9.98","Meals on Wheels","5714","Equipment - Purchase","16/12/2016"
"Wolverhampton City Council","http://opendatacommunities.org/id/metropolitan-district-council/wolverhampton","POST OFFICE COUNTER","15.35","Legal Services","9402","Comms - Postage","16/12/2016"
"Wolverhampton City Council","http://opendatacommunities.org/id/metropolitan-district-council/wolverhampton","ASDA PETROL 4949","50.00","Mayoral Expenses","5542","Petrol","16/12/2016"
"Wolverhampton City Council","http://opendatacommunities.org/id/metropolitan-district-council/wolverhampton","ASDA SUPERSTORE","5.60","Mayoral Expenses","5411","Hospitality","16/12/2016"
"Wolverhampton City Council","http://opendatacommunities.org/id/metropolitan-district-council/wolverhampton","WEST COAST TRAINS","66.75","Youth Offending Team","4112","Public Transport","16/12/2016"
"Wolverhampton City Council","http://opendatacommunities.org/id/metropolitan-district-council/wolverhampton","ARGOS RETAIL GROUP","166.94","EIP Locality 6","5310","Equipment - Purchase","16/12/2016"
"Wolverhampton City Council","http://opendatacommunities.org/id/metropolitan-district-council/wolverhampton","ARGOS RETAIL GROUP","30.97","EIP Locality 6","5310","Equipment - Purchase","16/12/2016"
"Wolverhampton City Council","http://opendatacommunities.org/id/metropolitan-district-council/wolverhampton","Virgin Trains","57.10","Adoption and Residence Team & Allowances","4112","Public Transport","16/12/2016"
"Wolverhampton City Council","http://opendatacommunities.org/id/metropolitan-district-council/wolverhampton","ASDA SUPERSTORE","22.55","Mayoral Expenses","5411","Hospitality","16/12/2016"
"Wolverhampton City Council","http://opendatacommunities.org/id/metropolitan-district-council/wolverhampton","SNACKS AND SWEETS","19.17","Mayoral Expenses","5441","Hospitality","16/12/2016"
"Wolverhampton City Council","http://opendatacommunities.org/id/metropolitan-district-council/wolverhampton","CT SANDWELL","180.00","CIN/CP S17 SW Unit - Area 1","8398","Equipment - Purchase","16/12/2016"
"Wolverhampton City Council","http://opendatacommunities.org/id/metropolitan-district-council/wolverhampton","WWW.WHEELFREEDOM.COM","25.00","CIN/CP S17 SW Unit - Area 8","5968","Subscriptions","16/12/2016"
"Wolverhampton City Council","http://opendatacommunities.org/id/metropolitan-district-council/wolverhampton","NOTEMACHINE","120.00","Physical & Sensory Disabilities Mgmt","6011","Financial Assistance In Exceptional Circ","16/12/2016"
"Wolverhampton City Council","http://opendatacommunities.org/id/metropolitan-district-council/wolverhampton","TRAINLINE","-160.80","Global Budgets","4112","Public Transport","16/12/2016"
"Wolverhampton City Council","http://opendatacommunities.org/id/metropolitan-district-council/wolverhampton","POST OFFICE COUNTER","7.25","Adoption and Residence Team & Allowances","9402","Comms - Postage","16/12/2016"
"Wolverhampton City Council","http://opendatacommunities.org/id/metropolitan-district-council/wolverhampton","POST OFFICE COUNTER","6.45","EIP Locality 4","9402","Comms - Postage","16/12/2016"
"Wolverhampton City Council","http://opendatacommunities.org/id/metropolitan-district-council/wolverhampton","ARGOS RETAIL GROUP","61.90","LAC Transitions Team","5310","Client Allowances","16/12/2016"
"Wolverhampton City Council","http://opendatacommunities.org/id/metropolitan-district-council/wolverhampton","Amazon UK Marketplace","6.52","Central Baths","5942","Books","16/12/2016"
"Wolverhampton City Council","http://opendatacommunities.org/id/metropolitan-district-council/wolverhampton","Amazon UK Marketplace","9.53","Aldersley Leisure Village","5942","Equipment - Purchase","16/12/2016"
"Wolverhampton City Council","http://opendatacommunities.org/id/metropolitan-district-council/wolverhampton","LIDDELL ELECTRICAL DIS","15.79","Statutory Services (10RM)","5065","R&M - Departmental planned (external)","15/12/2016"
"Wolverhampton City Council","http://opendatacommunities.org/id/metropolitan-district-council/wolverhampton","LIDDELL ELECTRICAL DIS","32.00","Bilston Town Hall","5065","Equipment - Purchase","15/12/2016"
"Wolverhampton City Council","http://opendatacommunities.org/id/metropolitan-district-council/wolverhampton","HOME BARGAINS","8.72","EIP Locality 1","5251","Equipment - Purchase","15/12/2016"
"Wolverhampton City Council","http://opendatacommunities.org/id/metropolitan-district-council/wolverhampton","ARGOS LTD","23.63","EIP Locality 1","5310","Equipment - Purchase","15/12/2016"
"Wolverhampton City Council","http://opendatacommunities.org/id/metropolitan-district-council/wolverhampton","MIDLAND DOMESTIC","110.00","EIP Locality 1","5722","Equipment - Purchase","15/12/2016"
"Wolverhampton City Council","http://opendatacommunities.org/id/metropolitan-district-council/wolverhampton","Amazon UK Marketplace","76.99","Pupil Premium","5942","Equipment - Purchase","15/12/2016"
"Wolverhampton City Council","http://opendatacommunities.org/id/metropolitan-district-council/wolverhampton","STERMAT CAR AND VAN HI","1006.25","Towers Outdoor Education Centre","5521","Vehicle Maintenance - Repairs","15/12/2016"
"Wolverhampton City Council","http://opendatacommunities.org/id/metropolitan-district-council/wolverhampton","WYNNSTAY ARGICULTURAL","35.80","Towers Outdoor Education Centre","5311","Equipment - Purchase","15/12/2016"
"Wolverhampton City Council","http://opendatacommunities.org/id/metropolitan-district-council/wolverhampton","COTSWOLD OUTDOOR-MAIL","439.33","Towers Outdoor Education Centre","5691","Equipment - Purchase","15/12/2016"
"Wolverhampton City Council","http://opendatacommunities.org/id/metropolitan-district-council/wolverhampton","Amazon UK Marketplace","126.85","Technical Support","5942","Books","15/12/2016"
"Wolverhampton City Council","http://opendatacommunities.org/id/metropolitan-district-council/wolverhampton","ROYAL BK OF SCOTLAND","150.00","46a, Second Avenue, Low Hill","6011","Financial Assistance In Exceptional Circ","15/12/2016"
"Wolverhampton City Council","http://opendatacommunities.org/id/metropolitan-district-council/wolverhampton","UNTOUCHABLES","15.00","Meals on Wheels","5231","Materials","15/12/2016"
"Wolverhampton City Council","http://opendatacommunities.org/id/metropolitan-district-council/wolverhampton","LOOP11.COM","161.64","City Direct","7372","Computing - Purchase of Software","15/12/2016"
"Wolverhampton City Council","http://opendatacommunities.org/id/metropolitan-district-council/wolverhampton","Trainline","70.04","LAC Transitions Team","4112","Public Transport","15/12/2016"
"Wolverhampton City Council","http://opendatacommunities.org/id/metropolitan-district-council/wolverhampton","ASDA STORES 4452","16.67","EIP Locality 4","5411","Equipment - Purchase","15/12/2016"
"Wolverhampton City Council","http://opendatacommunities.org/id/metropolitan-district-council/wolverhampton","DUDLEY MBC  INTERN","10.12","IMPACT","8999","Financial Assistance In Exceptional Circ","15/12/2016"
"Wolverhampton City Council","http://opendatacommunities.org/id/metropolitan-district-council/wolverhampton","REGISTRARS OFFICE","40.00","IMPACT","8299","Financial Assistance In Exceptional Circ","15/12/2016"
"Wolverhampton City Council","http://opendatacommunities.org/id/metropolitan-district-council/wolverhampton","WEST MIDLANDS TRAV","54.50","IMPACT","4131","Public Transport","15/12/2016"
"Wolverhampton City Council","http://opendatacommunities.org/id/metropolitan-district-council/wolverhampton","THE POST OFFICE","220.00","IMPACT","9402","Financial Assistance In Exceptional Circ","15/12/2016"
"Wolverhampton City Council","http://opendatacommunities.org/id/metropolitan-district-council/wolverhampton","THE POST OFFICE","220.00","IMPACT","9402","Financial Assistance In Exceptional Circ","15/12/2016"
"Wolverhampton City Council","http://opendatacommunities.org/id/metropolitan-district-council/wolverhampton","THE POST OFFICE","220.00","IMPACT","9402","Financial Assistance In Exceptional Circ","15/12/2016"
"Wolverhampton City Council","http://opendatacommunities.org/id/metropolitan-district-council/wolverhampton","DVLA DRIVER ONLINE","34.00","IMPACT","9399","Financial Assistance In Exceptional Circ","15/12/2016"
"Wolverhampton City Council","http://opendatacommunities.org/id/metropolitan-district-council/wolverhampton","SCREWFIX DIRECT LT","70.81","Caretakers Community Centre","5211","Materials","15/12/2016"
"Wolverhampton City Council","http://opendatacommunities.org/id/metropolitan-district-council/wolverhampton","WWW.ALLPURPOSELTD.CO.U","127.09","Central Baths","2842","Cleaning Supplies and Materials","15/12/2016"
"Wolverhampton City Council","http://opendatacommunities.org/id/metropolitan-district-council/wolverhampton","ARGOS LTD","30.98","Ernest Bold Court","5310","Equipment - Purchase","15/12/2016"
"Wolverhampton City Council","http://opendatacommunities.org/id/metropolitan-district-council/wolverhampton","JOHNSTONES DEC CENTRE","129.69","Statutory Services (10RM)","5231","R&M - Departmental planned (external)","15/12/2016"
"Wolverhampton City Council","http://opendatacommunities.org/id/metropolitan-district-council/wolverhampton","REGISTRARS OFFICE","41.00","CIN/CP S17 SW Unit - Area 7","8299","Training Expenses","15/12/2016"
"Wolverhampton City Council","http://opendatacommunities.org/id/metropolitan-district-council/wolverhampton","WWW,SHOP.STERLING-POWE","168.80","Fleet Management","5065","Equipment - Purchase","15/12/2016"
"Wolverhampton City Council","http://opendatacommunities.org/id/metropolitan-district-council/wolverhampton","B&M RETAIL","29.97","CIN/CP S17 SW Unit - Area 1","5310","Equipment - Purchase","15/12/2016"
"Wolverhampton City Council","http://opendatacommunities.org/id/metropolitan-district-council/wolverhampton","CT WOLVERHAMPTON","97.50","CIN/CP S17 SW Unit - Area 1","8398","Equipment - Purchase","15/12/2016"
"Wolverhampton City Council","http://opendatacommunities.org/id/metropolitan-district-council/wolverhampton","KONICA MINOLTA BUSINES","168.21","Music Support Team","7399","Equipment - R & M","15/12/2016"
"Wolverhampton City Council","http://opendatacommunities.org/id/metropolitan-district-council/wolverhampton","REGISTRARS OFFICE","10.00","Adoption and Residence Team & Allowances","8299","Services - Fees and Charges","15/12/2016"
"Wolverhampton City Council","http://opendatacommunities.org/id/metropolitan-district-council/wolverhampton","Trainline","109.85","Adoption and Residence Team & Allowances","4112","Public Transport","15/12/2016"
"Wolverhampton City Council","http://opendatacommunities.org/id/metropolitan-district-council/wolverhampton","Trainline","44.57","CIN/CP Social Work Unit - Area 6","4112","Public Transport","15/12/2016"
"Wolverhampton City Council","http://opendatacommunities.org/id/metropolitan-district-council/wolverhampton","ALDI","13.68","Intensive Family Support Team","5411","Provisions (Not for resale)","14/12/2016"
"Wolverhampton City Council","http://opendatacommunities.org/id/metropolitan-district-council/wolverhampton","WM MORRISON 024","18.65","Ernest Bold Court","5411","Provisions (Not for resale)","14/12/2016"
"Wolverhampton City Council","http://opendatacommunities.org/id/metropolitan-district-council/wolverhampton","Trainline","82.31","CIN/CP S17 SW Unit - Area 2","4112","Public Transport","14/12/2016"
"Wolverhampton City Council","http://opendatacommunities.org/id/metropolitan-district-council/wolverhampton","BLAS AR FWYD CYF","61.63","Towers Outdoor Education Centre","5812","Educ Trips, Holidays, Outings, Activity","14/12/2016"
"Wolverhampton City Council","http://opendatacommunities.org/id/metropolitan-district-council/wolverhampton","BRITISH HEART FOUNDATI","116.67","LAC Transitions Team","8398","Client Allowances","14/12/2016"
"Wolverhampton City Council","http://opendatacommunities.org/id/metropolitan-district-council/wolverhampton","TV LICENSING","145.50","Civic Halls Non Direct Management A/C","7392","Services - General Licences","14/12/2016"
"Wolverhampton City Council","http://opendatacommunities.org/id/metropolitan-district-council/wolverhampton","SAINSBURYS SACAT (2340","9.40","Civic Centre Catering","5411","Provisions (Not for resale)","14/12/2016"
"Wolverhampton City Council","http://opendatacommunities.org/id/metropolitan-district-council/wolverhampton","OPEN FORUM EVENTS","230.00","Workforce Development","7922","Training Expenses","14/12/2016"
"Wolverhampton City Council","http://opendatacommunities.org/id/metropolitan-district-council/wolverhampton","LIDL UK","3.93","Mayoral Expenses","5411","Hospitality","14/12/2016"
"Wolverhampton City Council","http://opendatacommunities.org/id/metropolitan-district-council/wolverhampton","POST OFFICE COUNTER","224.00","Fostering Team & Allowances","9402","Comms - Postage","14/12/2016"
"Wolverhampton City Council","http://opendatacommunities.org/id/metropolitan-district-council/wolverhampton","HUGHES","154.98","EIP Locality 3","5732","Equipment - Purchase","14/12/2016"
"Wolverhampton City Council","http://opendatacommunities.org/id/metropolitan-district-council/wolverhampton","WICKES","32.74","Northicote Farm","5211","Materials","14/12/2016"
"Wolverhampton City Council","http://opendatacommunities.org/id/metropolitan-district-council/wolverhampton","Amazon Svcs Europe,SAR","214.60","Building Consultancy","5942","Stationery","14/12/2016"
"Wolverhampton City Council","http://opendatacommunities.org/id/metropolitan-district-council/wolverhampton","PAYPAL  ILFDUK","13.32","Licensing - General","5945","Equipment - Purchase","14/12/2016"
"Wolverhampton City Council","http://opendatacommunities.org/id/metropolitan-district-council/wolverhampton","TD E-PMT 2MAA002195853","72.00","LAC Transitions Team","9399","Client Allowances","14/12/2016"
"Wolverhampton City Council","http://opendatacommunities.org/id/metropolitan-district-council/wolverhampton","SIGHT AND SOUND TECHNO","96.00","Revenues","5045","Computing - Purchase of Hardware","13/12/2016"
"Wolverhampton City Council","http://opendatacommunities.org/id/metropolitan-district-council/wolverhampton","EXPEDIA7229804988989","99.17","LAC Transitions Team","4722","Training Expenses","13/12/2016"
"Wolverhampton City Council","http://opendatacommunities.org/id/metropolitan-district-council/wolverhampton","ARGOS RETAIL GROUP","69.99","EIP Locality 6","5310","Equipment - Purchase","13/12/2016"
"Wolverhampton City Council","http://opendatacommunities.org/id/metropolitan-district-council/wolverhampton","LOVE2SHOP.CO.UK","-4.25","IMPACT","8641","Clothing / Uniforms","13/12/2016"
"Wolverhampton City Council","http://opendatacommunities.org/id/metropolitan-district-council/wolverhampton","Amazon UK Marketplace","49.99","Strategic ICTS (ICT Serv Budget)","5942","Computing - Purchase of Hardware","13/12/2016"
"Wolverhampton City Council","http://opendatacommunities.org/id/metropolitan-district-council/wolverhampton","HOME BARGAINS","3.33","Aldersley Leisure Village","5251","Equipment - Purchase","13/12/2016"
"Wolverhampton City Council","http://opendatacommunities.org/id/metropolitan-district-council/wolverhampton","HOME BARGAINS","31.25","Aldersley Leisure Village","5251","Equipment - Purchase","13/12/2016"
"Wolverhampton City Council","http://opendatacommunities.org/id/metropolitan-district-council/wolverhampton","SAFETYSHOP","338.70","Aldersley Leisure Village","5099","Equipment - Purchase","13/12/2016"
"Wolverhampton City Council","http://opendatacommunities.org/id/metropolitan-district-council/wolverhampton","WILKO RETAIL LIMIT","9.00","Central Costs","5722","Equipment - Purchase","13/12/2016"
"Wolverhampton City Council","http://opendatacommunities.org/id/metropolitan-district-council/wolverhampton","WILKO RETAIL LIMIT","20.00","Central Costs","5722","Equipment - Purchase","13/12/2016"
"Wolverhampton City Council","http://opendatacommunities.org/id/metropolitan-district-council/wolverhampton","ARGOS LTD","7.98","Ernest Bold Court","5310","Equipment - Purchase","13/12/2016"
"Wolverhampton City Council","http://opendatacommunities.org/id/metropolitan-district-council/wolverhampton","ROYAL CARPETS","366.67","LAC Transitions Team","5713","Client Allowances","13/12/2016"
"Wolverhampton City Council","http://opendatacommunities.org/id/metropolitan-district-council/wolverhampton","B & Q 1243","84.94","Caretakers Community Centre","5211","R&M - Departmental planned (external)","13/12/2016"
"Wolverhampton City Council","http://opendatacommunities.org/id/metropolitan-district-council/wolverhampton","CARVER/WOLVERHAMPTON/L","35.46","Priory Green","5211","R&M - Departmental planned (external)","13/12/2016"
"Wolverhampton City Council","http://opendatacommunities.org/id/metropolitan-district-council/wolverhampton","Virgin Trains","147.00","Housing Regeneration - Strategy & Dev","4112","Public Transport","13/12/2016"
"Wolverhampton City Council","http://opendatacommunities.org/id/metropolitan-district-council/wolverhampton","TESCO STORES 5194","44.43","Towers Outdoor Education Centre","5411","Provisions (Not for resale)","13/12/2016"
"Wolverhampton City Council","http://opendatacommunities.org/id/metropolitan-district-council/wolverhampton","O E METCALFE","332.77","Towers Outdoor Education Centre","5499","Catering","13/12/2016"
"Wolverhampton City Council","http://opendatacommunities.org/id/metropolitan-district-council/wolverhampton","HARLECH FOODSERVICE LT","239.91","Towers Outdoor Education Centre","5422","Catering","13/12/2016"
"Wolverhampton City Council","http://opendatacommunities.org/id/metropolitan-district-council/wolverhampton","SPAR SIOP TANDDERWEN","322.40","Towers Outdoor Education Centre","5411","Provisions (Not for resale)","13/12/2016"
"Wolverhampton City Council","http://opendatacommunities.org/id/metropolitan-district-council/wolverhampton","FSPRG.COM INFFUSE.COM","5.05","Technical Support","5734","Computing - Purchase of Software","13/12/2016"
"Wolverhampton City Council","http://opendatacommunities.org/id/metropolitan-district-council/wolverhampton","MICROSOFT    STORE","62.20","Learning Technologies","5816","Computing - Purchase of Software","13/12/2016"
"Wolverhampton City Council","http://opendatacommunities.org/id/metropolitan-district-council/wolverhampton","OlympusSDSA Y091337_1","749.99","Learning Technologies","5732","Equipment - Purchase","13/12/2016"
"Wolverhampton City Council","http://opendatacommunities.org/id/metropolitan-district-council/wolverhampton","ASDA HOME SHOPPING","74.15","Ernest Bold Court","5411","Provisions (Not for resale)","13/12/2016"
"Wolverhampton City Council","http://opendatacommunities.org/id/metropolitan-district-council/wolverhampton","BARCLAYS BANK PLC","250.00","CIN/CP S17 SW Unit - Area 6","6011","No Recourse to Public Funds","13/12/2016"
"Wolverhampton City Council","http://opendatacommunities.org/id/metropolitan-district-council/wolverhampton","CITB","25.00","Property Services - Building Maintenance","8220","Training Expenses","13/12/2016"
"Wolverhampton City Council","http://opendatacommunities.org/id/metropolitan-district-council/wolverhampton","ASDA SUPERSTORE","13.11","CIN/CP S17 SW Unit - Area 5","5411","Provisions (Not for resale)","13/12/2016"
"Wolverhampton City Council","http://opendatacommunities.org/id/metropolitan-district-council/wolverhampton","ASDA SUPERSTORE","22.00","CIN/CP S17 SW Unit - Area 5","5411","Provisions (Not for resale)","13/12/2016"
"Wolverhampton City Council","http://opendatacommunities.org/id/metropolitan-district-council/wolverhampton","ASDA SUPERSTORE","26.22","CIN/CP S17 SW Unit - Area 5","5411","Provisions (Not for resale)","13/12/2016"
"Wolverhampton City Council","http://opendatacommunities.org/id/metropolitan-district-council/wolverhampton","DUNELM (SOFT FURNISHIN","9.98","Meals on Wheels","5714","Equipment - Purchase","12/12/2016"
"Wolverhampton City Council","http://opendatacommunities.org/id/metropolitan-district-council/wolverhampton","SAINSBURYS (2340)","3.96","Mayoral Expenses","5411","Hospitality","12/12/2016"
"Wolverhampton City Council","http://opendatacommunities.org/id/metropolitan-district-council/wolverhampton","SAINSBURYS (2340)","7.21","Mayoral Expenses","5411","Hospitality","12/12/2016"
"Wolverhampton City Council","http://opendatacommunities.org/id/metropolitan-district-council/wolverhampton","Amazon EU","16.91","Patching","5969","Materials","12/12/2016"
"Wolverhampton City Council","http://opendatacommunities.org/id/metropolitan-district-council/wolverhampton","Amazon EU","16.91","Patching","5969","Materials","12/12/2016"
"Wolverhampton City Council","http://opendatacommunities.org/id/metropolitan-district-council/wolverhampton","SCAN STORE","127.67","Revenues","7399","Equipment - Purchase","12/12/2016"
"Wolverhampton City Council","http://opendatacommunities.org/id/metropolitan-district-council/wolverhampton","CARVER/WOLVERHAMPTON/L","57.67","Northicote Farm","5211","Materials","12/12/2016"
"Wolverhampton City Council","http://opendatacommunities.org/id/metropolitan-district-council/wolverhampton","SAINSBURYS","300.00","Childrens with Disabilities Team","6011","Financial Assistance In Exceptional Circ","12/12/2016"
"Wolverhampton City Council","http://opendatacommunities.org/id/metropolitan-district-council/wolverhampton","SAINSBURYS (2340)","59.28","Childrens with Disabilities Team","5411","Comms - Postage","12/12/2016"
"Wolverhampton City Council","http://opendatacommunities.org/id/metropolitan-district-council/wolverhampton","SAINSBURYS 2040","6.30","Duke Street Bungalows","5411","Provisions (Not for resale)","12/12/2016"
"Wolverhampton City Council","http://opendatacommunities.org/id/metropolitan-district-council/wolverhampton","SAINSBURYS 2040","13.77","Duke Street Bungalows","5411","Provisions (Not for resale)","12/12/2016"
"Wolverhampton City Council","http://opendatacommunities.org/id/metropolitan-district-council/wolverhampton","Amazon UK Marketplace","-6.96","Adoption and Residence Team & Allowances","5999","Books","12/12/2016"
"Wolverhampton City Council","http://opendatacommunities.org/id/metropolitan-district-council/wolverhampton","B & M RETAIL","32.39","Towers Outdoor Education Centre","5310","Equipment - Purchase","12/12/2016"
"Wolverhampton City Council","http://opendatacommunities.org/id/metropolitan-district-council/wolverhampton","123 REG R/T","13.98","Technical Support","5968","Subscriptions","12/12/2016"
"Wolverhampton City Council","http://opendatacommunities.org/id/metropolitan-district-council/wolverhampton","COMPANY CARDS LTD","80.50","Technical Support","2741","Equipment - Purchase","12/12/2016"
"Wolverhampton City Council","http://opendatacommunities.org/id/metropolitan-district-council/wolverhampton","GEO E DAVIES","16.66","Learning Disabilities Management","5732","Equipment - R & M","12/12/2016"
"Wolverhampton City Council","http://opendatacommunities.org/id/metropolitan-district-council/wolverhampton","W M MORRISON PLC","11.68","Ernest Bold Court","5411","Provisions (Not for resale)","12/12/2016"
"Wolverhampton City Council","http://opendatacommunities.org/id/metropolitan-district-council/wolverhampton","ASDA HOME SHOPPING","-0.32","Ernest Bold Court","5411","Provisions (Not for resale)","12/12/2016"
"Wolverhampton City Council","http://opendatacommunities.org/id/metropolitan-district-council/wolverhampton","ASDA HOME SHOPPING","82.44","Ernest Bold Court","5411","Provisions (Not for resale)","12/12/2016"
"Wolverhampton City Council","http://opendatacommunities.org/id/metropolitan-district-council/wolverhampton","NETWORK WEST MIDLANDS","25.50","CIN/CP S17 SW Unit - Area 5","9399","Public Transport","12/12/2016"
"Wolverhampton City Council","http://opendatacommunities.org/id/metropolitan-district-council/wolverhampton","CARESHOP","60.88","Specialist Support Service - North","5999","Cleaning Supplies and Materials","12/12/2016"
"Wolverhampton City Council","http://opendatacommunities.org/id/metropolitan-district-council/wolverhampton","CARESHOP","106.02","Specialist Support Service - North","5999","Cleaning Supplies and Materials","12/12/2016"
"Wolverhampton City Council","http://opendatacommunities.org/id/metropolitan-district-council/wolverhampton","ARGOS RETAIL GROUP","319.12","Box Office Administration","5310","Equipment - Purchase","12/12/2016"
"Wolverhampton City Council","http://opendatacommunities.org/id/metropolitan-district-council/wolverhampton","123 REG R/T","33.55","Art Gallery","5968","Subscriptions","12/12/2016"
"Wolverhampton City Council","http://opendatacommunities.org/id/metropolitan-district-council/wolverhampton","Amazon EU","15.65","Strategic ICTS (ICT Serv Budget)","5969","Stationery","12/12/2016"
"Wolverhampton City Council","http://opendatacommunities.org/id/metropolitan-district-council/wolverhampton","Amazon Prime","7.99","Strategic ICTS (ICT Serv Budget)","5968","Subscriptions","12/12/2016"
"Wolverhampton City Council","http://opendatacommunities.org/id/metropolitan-district-council/wolverhampton","Amazon UK Marketplace","16.79","Strategic ICTS (ICT Serv Budget)","5942","Stationery","12/12/2016"
"Wolverhampton City Council","http://opendatacommunities.org/id/metropolitan-district-council/wolverhampton","B&M RETAIL","12.95","LAC Transitions Team","5310","Client Allowances","12/12/2016"
"Wolverhampton City Council","http://opendatacommunities.org/id/metropolitan-district-council/wolverhampton","CARPET MILL","221.00","LAC Transitions Team","5713","Client Allowances","12/12/2016"
"Wolverhampton City Council","http://opendatacommunities.org/id/metropolitan-district-council/wolverhampton","HM PASSPORT OFFICE","98.00","LAC Team","9399","Services - Fees and Charges","12/12/2016"
"Wolverhampton City Council","http://opendatacommunities.org/id/metropolitan-district-council/wolverhampton","Virgin Trains","255.00","LAC Team","4112","Public Transport","12/12/2016"
"Wolverhampton City Council","http://opendatacommunities.org/id/metropolitan-district-council/wolverhampton","THE RANGE","19.99","Ernest Bold Court","5311","Equipment - Purchase","12/12/2016"
"Wolverhampton City Council","http://opendatacommunities.org/id/metropolitan-district-council/wolverhampton","WALKER MEATS","13.00","Headstart Phase 3","5499","Catering","12/12/2016"
"Wolverhampton City Council","http://opendatacommunities.org/id/metropolitan-district-council/wolverhampton","CUMMINGS BROTHERS LOCK","13.33","Statutory Services (10RM)","7399","R&M - Departmental planned (external)","12/12/2016"
"Wolverhampton City Council","http://opendatacommunities.org/id/metropolitan-district-council/wolverhampton","SCREWFIX DIRECT LT","11.22","Cleaning of Buildings - General","5211","Equipment - Purchase","12/12/2016"
"Wolverhampton City Council","http://opendatacommunities.org/id/metropolitan-district-council/wolverhampton","ARGOS LTD","13.33","Learning Disabilities Management","5310","Equipment - R & M","12/12/2016"
"Wolverhampton City Council","http://opendatacommunities.org/id/metropolitan-district-council/wolverhampton","WEST COAST TRAINS","14.50","IMPACT","4112","Public Transport","12/12/2016"
"Wolverhampton City Council","http://opendatacommunities.org/id/metropolitan-district-council/wolverhampton","Amazon UK Marketplace","56.28","Adoption and Residence Team & Allowances","5942","Books","12/12/2016"
"Wolverhampton City Council","http://opendatacommunities.org/id/metropolitan-district-council/wolverhampton","Amazon UK Marketplace","9.57","Adoption and Residence Team & Allowances","5942","Books","12/12/2016"
"Wolverhampton City Council","http://opendatacommunities.org/id/metropolitan-district-council/wolverhampton","WM MORRISONS","3.84","CIN/CP S17 SW Unit - Area 6","5411","Provisions (Resale)","12/12/2016"
"Wolverhampton City Council","http://opendatacommunities.org/id/metropolitan-district-council/wolverhampton","LOVE2SHOP.CO.UK","404.25","IMPACT","8641","Clothing / Uniforms","12/12/2016"
"Wolverhampton City Council","http://opendatacommunities.org/id/metropolitan-district-council/wolverhampton","Amazon UK Marketplace","133.32","Dovecotes Primary School","5942","Comms - Mobile Telephones","12/12/2016"
"Wolverhampton City Council","http://opendatacommunities.org/id/metropolitan-district-council/wolverhampton","AMAZON UK RETAIL AMAZO","12.70","Strategic ICTS (ICT Serv Budget)","5999","Stationery","12/12/2016"
"Wolverhampton City Council","http://opendatacommunities.org/id/metropolitan-district-council/wolverhampton","WOLVERHAMPTON ART","6.21","Education And Access","8299","Catering","09/12/2016"
"Wolverhampton City Council","http://opendatacommunities.org/id/metropolitan-district-council/wolverhampton","GEOGRAPHERS A-Z MAP CO","9.00","Environmental Health - Pub Prot - Gen","5942","Equipment - Purchase","09/12/2016"
"Wolverhampton City Council","http://opendatacommunities.org/id/metropolitan-district-council/wolverhampton","WAYFAIR STORES LIM","80.82","CIN/CP S17 SW Unit - Area 5","5965","Furniture","09/12/2016"
"Wolverhampton City Council","http://opendatacommunities.org/id/metropolitan-district-council/wolverhampton","SMBC  REVENUES - C","150.00","Workforce Development","7392","Training Expenses","09/12/2016"
"Wolverhampton City Council","http://opendatacommunities.org/id/metropolitan-district-council/wolverhampton","WEST COAST TRAINS","5.50","Road Safety","4112","Public Transport","09/12/2016"
"Wolverhampton City Council","http://opendatacommunities.org/id/metropolitan-district-council/wolverhampton","SPECSAVERSEVOUGB-","773.01","HR Advice","8043","Services - Professional Fees","09/12/2016"
"Wolverhampton City Council","http://opendatacommunities.org/id/metropolitan-district-council/wolverhampton","PAYPAL  HONGKONGFEN","7.32","LAC Transitions Team","5732","Client Allowances","09/12/2016"
"Wolverhampton City Council","http://opendatacommunities.org/id/metropolitan-district-council/wolverhampton","SANDHU","21.00","EIP Locality 5","5411","Provisions (Not for resale)","09/12/2016"
"Wolverhampton City Council","http://opendatacommunities.org/id/metropolitan-district-council/wolverhampton","NOTEMACHINE","250.00","CIN/CP S17 SW Unit - Area 6","6011","No Recourse to Public Funds","09/12/2016"
"Wolverhampton City Council","http://opendatacommunities.org/id/metropolitan-district-council/wolverhampton","WWW.MAPLIN.CO.UK","24.99","Licensing - General","5732","Equipment - Purchase","09/12/2016"
"Wolverhampton City Council","http://opendatacommunities.org/id/metropolitan-district-council/wolverhampton","WWW.MAPLIN.CO.UK","24.99","Licensing - General","5732","Equipment - Purchase","09/12/2016"
"Wolverhampton City Council","http://opendatacommunities.org/id/metropolitan-district-council/wolverhampton","THE BOOK PEOPLE","84.12","EIP Locality 4","5942","Grant Payments","09/12/2016"
"Wolverhampton City Council","http://opendatacommunities.org/id/metropolitan-district-council/wolverhampton","B & Q 1276","39.14","LAC Transitions Team","5211","Client Allowances","09/12/2016"
"Wolverhampton City Council","http://opendatacommunities.org/id/metropolitan-district-council/wolverhampton","Virgin Trains","85.20","LAC Team","4112","Public Transport","09/12/2016"
"Wolverhampton City Council","http://opendatacommunities.org/id/metropolitan-district-council/wolverhampton","Amazon Svcs Europe,SAR","89.33","Headstart Wolverhampton","5942","Books","09/12/2016"
"Wolverhampton City Council","http://opendatacommunities.org/id/metropolitan-district-council/wolverhampton","BETTWS MOTORS LIMITED","40.50","Towers Outdoor Education Centre","7538","Vehicle Maintenance - Repairs","09/12/2016"
"Wolverhampton City Council","http://opendatacommunities.org/id/metropolitan-district-council/wolverhampton","Amazon UK Marketplace","7.42","Towers Outdoor Education Centre","5942","Books","09/12/2016"
"Wolverhampton City Council","http://opendatacommunities.org/id/metropolitan-district-council/wolverhampton","123 REG R/T","11.99","Technical Support","5968","Subscriptions","09/12/2016"
"Wolverhampton City Council","http://opendatacommunities.org/id/metropolitan-district-council/wolverhampton","Amazon UK Marketplace","67.98","Technical Support","5942","Furniture","09/12/2016"
"Wolverhampton City Council","http://opendatacommunities.org/id/metropolitan-district-council/wolverhampton","E01577600000000","80.00","Statutory Services (10RM)","6011","Equipment - Purchase","09/12/2016"
"Wolverhampton City Council","http://opendatacommunities.org/id/metropolitan-district-council/wolverhampton","ONLINE.OFFICEDEPOT.CO.","35.00","Fleet Management","5111","Stationery","08/12/2016"
"Wolverhampton City Council","http://opendatacommunities.org/id/metropolitan-district-council/wolverhampton","WWW.ICO.GOV.UK","35.00","Members Expenses","9399","Subscriptions","08/12/2016"
"Wolverhampton City Council","http://opendatacommunities.org/id/metropolitan-district-council/wolverhampton","WWW.ICO.GOV.UK","35.00","Members Expenses","9399","Subscriptions","08/12/2016"
"Wolverhampton City Council","http://opendatacommunities.org/id/metropolitan-district-council/wolverhampton","WWW.ICO.GOV.UK","35.00","Members Expenses","9399","Subscriptions","08/12/2016"
"Wolverhampton City Council","http://opendatacommunities.org/id/metropolitan-district-council/wolverhampton","WEST MIDLANDS TRAV","53.00","IMPACT","4131","Client Transport","08/12/2016"
"Wolverhampton City Council","http://opendatacommunities.org/id/metropolitan-district-council/wolverhampton","THE POST OFFICE","220.00","IMPACT","9402","Financial Assistance In Exceptional Circ","08/12/2016"
"Wolverhampton City Council","http://opendatacommunities.org/id/metropolitan-district-council/wolverhampton","ROYAL CARPETS","260.00","CIN/CP S17 SW Unit - Area 3","5713","Equipment - Purchase","08/12/2016"
"Wolverhampton City Council","http://opendatacommunities.org/id/metropolitan-district-council/wolverhampton","SAFETYSHOP","128.39","Work Related Studies","5099","Equipment - Purchase","08/12/2016"
"Wolverhampton City Council","http://opendatacommunities.org/id/metropolitan-district-council/wolverhampton","TNA DISCOVERY ORDERS","65.92","Transportation General","9399","Services - Fees and Charges","08/12/2016"
"Wolverhampton City Council","http://opendatacommunities.org/id/metropolitan-district-council/wolverhampton","WM MORRISON 024","26.51","EIP Locality 2","5411","Provisions (Not for resale)","08/12/2016"
"Wolverhampton City Council","http://opendatacommunities.org/id/metropolitan-district-council/wolverhampton","HSBC INVOICE FINAN","311.83","Towers Outdoor Education Centre","6012","Laundry Expenses","08/12/2016"
"Wolverhampton City Council","http://opendatacommunities.org/id/metropolitan-district-council/wolverhampton","STERMAT CAR AND VAN HI","1257.10","Towers Outdoor Education Centre","5521","Vehicle Maintenance - Repairs","08/12/2016"
"Wolverhampton City Council","http://opendatacommunities.org/id/metropolitan-district-council/wolverhampton","C L JONES LIMITED","56.82","Towers Outdoor Education Centre","5211","Fixtures and Fittings - Purchases","08/12/2016"
"Wolverhampton City Council","http://opendatacommunities.org/id/metropolitan-district-council/wolverhampton","HN NUTTALL LTD","419.76","Towers Outdoor Education Centre","5085","Equipment - Purchase","08/12/2016"
"Wolverhampton City Council","http://opendatacommunities.org/id/metropolitan-district-council/wolverhampton","Amazon UK Marketplace","24.60","Towers Outdoor Education Centre","5942","Books","08/12/2016"
"Wolverhampton City Council","http://opendatacommunities.org/id/metropolitan-district-council/wolverhampton","Virgin Trains","8.00","Children & Young People Support Costs","4112","Public Transport","08/12/2016"
"Wolverhampton City Council","http://opendatacommunities.org/id/metropolitan-district-council/wolverhampton","Amazon UK Marketplace","13.99","Fleet Management","5942","Equipment - Purchase","08/12/2016"
"Wolverhampton City Council","http://opendatacommunities.org/id/metropolitan-district-council/wolverhampton","WWWSIGHTANDSOUND.CO.UK","491.94","Revenues","5045","Computing - Purchase of Hardware","08/12/2016"
"Wolverhampton City Council","http://opendatacommunities.org/id/metropolitan-district-council/wolverhampton","WICKES","34.35","Northicote Farm","5211","Materials","08/12/2016"
"Wolverhampton City Council","http://opendatacommunities.org/id/metropolitan-district-council/wolverhampton","HOMEBASE LTD 103","46.72","Northicote Farm","5211","Materials","08/12/2016"
"Wolverhampton City Council","http://opendatacommunities.org/id/metropolitan-district-council/wolverhampton","SAINSBURYS 2040","18.00","Duke Street Bungalows","5411","Provisions (Not for resale)","08/12/2016"
"Wolverhampton City Council","http://opendatacommunities.org/id/metropolitan-district-council/wolverhampton","Amazon UK Marketplace","4.35","Adoption and Residence Team & Allowances","5942","Books","08/12/2016"
"Wolverhampton City Council","http://opendatacommunities.org/id/metropolitan-district-council/wolverhampton","Amazon UK Marketplace","12.44","Adoption and Residence Team & Allowances","5942","Books","08/12/2016"
"Wolverhampton City Council","http://opendatacommunities.org/id/metropolitan-district-council/wolverhampton","Amazon Svcs Europe,SAR","3.79","Adoption and Residence Team & Allowances","5942","Books","08/12/2016"
"Wolverhampton City Council","http://opendatacommunities.org/id/metropolitan-district-council/wolverhampton","PAYPAL  HOMEWAREUKL","46.45","Art Gallery","5719","Equipment - Purchase","08/12/2016"
"Wolverhampton City Council","http://opendatacommunities.org/id/metropolitan-district-council/wolverhampton","WEST MID TRAVEL","416.85","Business Manager - Place","4131","Public Transport","08/12/2016"
"Wolverhampton City Council","http://opendatacommunities.org/id/metropolitan-district-council/wolverhampton","Amazon Prime","-7.99","Licensing - General","5968","Comms - Postage","08/12/2016"
"Wolverhampton City Council","http://opendatacommunities.org/id/metropolitan-district-council/wolverhampton","WWW.ICO.GOV.UK","35.00","Members Expenses","9399","Subscriptions","08/12/2016"
"Wolverhampton City Council","http://opendatacommunities.org/id/metropolitan-district-council/wolverhampton","KANO COMPUTING LTD","254.98","Learning Technologies","5999","Equipment - Purchase","08/12/2016"
"Wolverhampton City Council","http://opendatacommunities.org/id/metropolitan-district-council/wolverhampton","Amazon UK Marketplace","73.98","Technical Support","5942","Books","08/12/2016"
"Wolverhampton City Council","http://opendatacommunities.org/id/metropolitan-district-council/wolverhampton","Amazon EU","299.94","Learning Technologies","5969","Equipment - Purchase","08/12/2016"
"Wolverhampton City Council","http://opendatacommunities.org/id/metropolitan-district-council/wolverhampton","Amazon UK Marketplace","99.90","Technical Support","5942","Equipment - Purchase","08/12/2016"
"Wolverhampton City Council","http://opendatacommunities.org/id/metropolitan-district-council/wolverhampton","BEATTIES","50.00","Mayoral Expenses","5311","Gratuities","08/12/2016"
"Wolverhampton City Council","http://opendatacommunities.org/id/metropolitan-district-council/wolverhampton","Virgin Trains","169.10","Environmental Health - Pub Prot - Gen","4112","Services - Fees and Charges","08/12/2016"
"Wolverhampton City Council","http://opendatacommunities.org/id/metropolitan-district-council/wolverhampton","Trainline","35.75","AES Staff Development","4112","Public Transport","08/12/2016"
"Wolverhampton City Council","http://opendatacommunities.org/id/metropolitan-district-council/wolverhampton","Trainline","57.63","AES Staff Development","4112","Public Transport","08/12/2016"
"Wolverhampton City Council","http://opendatacommunities.org/id/metropolitan-district-council/wolverhampton","Trainline","97.72","AES Staff Development","4112","Public Transport","08/12/2016"
"Wolverhampton City Council","http://opendatacommunities.org/id/metropolitan-district-council/wolverhampton","Cross Country Trains","91.40","School Improvement","4112","Public Transport","08/12/2016"
"Wolverhampton City Council","http://opendatacommunities.org/id/metropolitan-district-council/wolverhampton","Amazon UK Marketplace","-18.74","Fleet Management","5999","Equipment - Purchase","08/12/2016"
"Wolverhampton City Council","http://opendatacommunities.org/id/metropolitan-district-council/wolverhampton","ASDA STORE 4351","34.17","Cemeteries","5411","Provisions (Not for resale)","08/12/2016"
"Wolverhampton City Council","http://opendatacommunities.org/id/metropolitan-district-council/wolverhampton","POUNDWORLD RETAIL","19.17","Cemeteries","5310","Equipment - Purchase","08/12/2016"
"Wolverhampton City Council","http://opendatacommunities.org/id/metropolitan-district-council/wolverhampton","CURRYS S/S","-283.33","EIP Locality 4","5732","Grant Payments","08/12/2016"
"Wolverhampton City Council","http://opendatacommunities.org/id/metropolitan-district-council/wolverhampton","TESCO STORE 3290","37.08","Cemeteries","5411","Provisions (Not for resale)","08/12/2016"
"Wolverhampton City Council","http://opendatacommunities.org/id/metropolitan-district-council/wolverhampton","PEACOCK STORES","51.71","EIP Locality 4","5331","Grant Payments","08/12/2016"
"Wolverhampton City Council","http://opendatacommunities.org/id/metropolitan-district-council/wolverhampton","Amazon UK Marketplace","56.31","EIP Locality 4","5942","Books","08/12/2016"
"Wolverhampton City Council","http://opendatacommunities.org/id/metropolitan-district-council/wolverhampton","Amazon UK Marketplace","17.31","EIP Locality 4","5942","Books","08/12/2016"
"Wolverhampton City Council","http://opendatacommunities.org/id/metropolitan-district-council/wolverhampton","NETWORK WEST MIDLANDS","53.00","IMPACT","9399","Client Transport","08/12/2016"
"Wolverhampton City Council","http://opendatacommunities.org/id/metropolitan-district-council/wolverhampton","NETWORK WEST MIDLANDS","420.00","IMPACT","9399","Client Transport","08/12/2016"
"Wolverhampton City Council","http://opendatacommunities.org/id/metropolitan-district-council/wolverhampton","NETWORK WEST MIDLANDS","420.00","IMPACT","9399","Client Transport","08/12/2016"
"Wolverhampton City Council","http://opendatacommunities.org/id/metropolitan-district-council/wolverhampton","NETWORK WEST MIDLANDS","420.00","IMPACT","9399","Client Transport","08/12/2016"
"Wolverhampton City Council","http://opendatacommunities.org/id/metropolitan-district-council/wolverhampton","SAINSBURYS SACAT (2340","24.19","Mayoral Expenses","5411","Hospitality","07/12/2016"
"Wolverhampton City Council","http://opendatacommunities.org/id/metropolitan-district-council/wolverhampton","ONLINE.OFFICEDEPOT.CO.","55.12","Fleet Management","5111","Stationery","07/12/2016"
"Wolverhampton City Council","http://opendatacommunities.org/id/metropolitan-district-council/wolverhampton","PP 2STROKE","180.00","Street Lighting Maintenance","8999","Services - Professional Fees","07/12/2016"
"Wolverhampton City Council","http://opendatacommunities.org/id/metropolitan-district-council/wolverhampton","Trainline","175.75","Global Budgets","4112","Public Transport","07/12/2016"
"Wolverhampton City Council","http://opendatacommunities.org/id/metropolitan-district-council/wolverhampton","AMAZON UK RETAIL AMAZO","26.91","Adoption and Residence Team & Allowances","5999","Books","07/12/2016"
"Wolverhampton City Council","http://opendatacommunities.org/id/metropolitan-district-council/wolverhampton","POST OFFICE COUNTER","48.00","Adoption and Residence Team & Allowances","9402","Comms - Postage","07/12/2016"
"Wolverhampton City Council","http://opendatacommunities.org/id/metropolitan-district-council/wolverhampton","Amazon Svcs Europe,SAR","4.74","Adoption and Residence Team & Allowances","5942","Books","07/12/2016"
"Wolverhampton City Council","http://opendatacommunities.org/id/metropolitan-district-council/wolverhampton","WWW.CATER4YOU.CO.UK","23.35","LAC Transitions Team","5811","Client Allowances","07/12/2016"
"Wolverhampton City Council","http://opendatacommunities.org/id/metropolitan-district-council/wolverhampton","STAFFORDSHIRE COUNTY C","10.00","LAC Transitions Team","9399","Client Allowances","07/12/2016"
"Wolverhampton City Council","http://opendatacommunities.org/id/metropolitan-district-council/wolverhampton","OYSTER RENEW WEB","50.00","Members Expenses","4112","Public Transport","07/12/2016"
"Wolverhampton City Council","http://opendatacommunities.org/id/metropolitan-district-council/wolverhampton","TFM FARM & COUNTRY SUP","198.32","Northicote Farm","5399","Materials","07/12/2016"
"Wolverhampton City Council","http://opendatacommunities.org/id/metropolitan-district-council/wolverhampton","Amazon UK Marketplace","3.73","Northicote Farm","5942","Materials","07/12/2016"
"Wolverhampton City Council","http://opendatacommunities.org/id/metropolitan-district-council/wolverhampton","THE RANGE","15.16","Cemeteries","5311","Equipment - Purchase","07/12/2016"
"Wolverhampton City Council","http://opendatacommunities.org/id/metropolitan-district-council/wolverhampton","ARGOS RETAIL GROUP","101.20","EIP Locality 4","5310","Grant Payments","07/12/2016"
"Wolverhampton City Council","http://opendatacommunities.org/id/metropolitan-district-council/wolverhampton","Amazon UK Marketplace","14.40","EIP Locality 4","5942","Books","07/12/2016"
"Wolverhampton City Council","http://opendatacommunities.org/id/metropolitan-district-council/wolverhampton","THE WORKS","2.67","Culwell Street Depot","5310","Equipment - Purchase","07/12/2016"
"Wolverhampton City Council","http://opendatacommunities.org/id/metropolitan-district-council/wolverhampton","B&M RETAIL","-20.80","Aldersley Leisure Village","5310","Equipment - Purchase","07/12/2016"
"Wolverhampton City Council","http://opendatacommunities.org/id/metropolitan-district-council/wolverhampton","ASDA SUPERSTORE","20.83","Aldersley Leisure Village","5411","Equipment - Purchase","07/12/2016"
"Wolverhampton City Council","http://opendatacommunities.org/id/metropolitan-district-council/wolverhampton","MOTHERCARE DIRECT-E-CO","65.00","CIN/CP S17 SW Unit - Area 3","5311","Equipment - Purchase","07/12/2016"
"Wolverhampton City Council","http://opendatacommunities.org/id/metropolitan-district-council/wolverhampton","E01510300000000","60.00","Emergency Duty Team","6011","Financial Assistance In Exceptional Circ","07/12/2016"
"Wolverhampton City Council","http://opendatacommunities.org/id/metropolitan-district-council/wolverhampton","LOYD 37 CHURCH STREET","200.00","EIP Locality 8","6011","Equipment - Purchase","07/12/2016"
"Wolverhampton City Council","http://opendatacommunities.org/id/metropolitan-district-council/wolverhampton","AMAZON UK RETAIL AMAZO","30.79","Headstart Wolverhampton","5999","Equipment - Purchase","07/12/2016"
"Wolverhampton City Council","http://opendatacommunities.org/id/metropolitan-district-council/wolverhampton","ASDA SUPERSTORE","34.14","Education And Access","5411","Provisions (Not for resale)","07/12/2016"
"Wolverhampton City Council","http://opendatacommunities.org/id/metropolitan-district-council/wolverhampton","SAINSBURYS 2040","56.30","Duke Street Bungalows","5411","Catering","07/12/2016"
"Wolverhampton City Council","http://opendatacommunities.org/id/metropolitan-district-council/wolverhampton","TESCO STORES 5194","142.25","Towers Outdoor Education Centre","5411","Provisions (Not for resale)","07/12/2016"
"Wolverhampton City Council","http://opendatacommunities.org/id/metropolitan-district-council/wolverhampton","FUEL CARD SERVICES LTD","336.71","Towers Outdoor Education Centre","7399","Petrol","07/12/2016"
"Wolverhampton City Council","http://opendatacommunities.org/id/metropolitan-district-council/wolverhampton","NORTHERN POTTERY LTD","26.56","Towers Outdoor Education Centre","5999","Fixtures and Fittings - Purchases","07/12/2016"
"Wolverhampton City Council","http://opendatacommunities.org/id/metropolitan-district-council/wolverhampton","CHEMSOL CYMRU LTD","92.75","Towers Outdoor Education Centre","5199","Fixtures and Fittings - Purchases","07/12/2016"
"Wolverhampton City Council","http://opendatacommunities.org/id/metropolitan-district-council/wolverhampton","Amazon UK Marketplace","10.47","Towers Outdoor Education Centre","5942","Equipment - Purchase","07/12/2016"
"Wolverhampton City Council","http://opendatacommunities.org/id/metropolitan-district-council/wolverhampton","Amazon EU","11.66","Blakenhall Commty & Healthy Living Ctr","5969","Equipment - Purchase","07/12/2016"
"Wolverhampton City Council","http://opendatacommunities.org/id/metropolitan-district-council/wolverhampton","B & Q 1243","15.00","Ernest Bold Court","5211","Equipment - R & M","07/12/2016"
"Wolverhampton City Council","http://opendatacommunities.org/id/metropolitan-district-council/wolverhampton","W M MORRISON PLC","11.54","Ernest Bold Court","5411","Provisions (Not for resale)","07/12/2016"
"Wolverhampton City Council","http://opendatacommunities.org/id/metropolitan-district-council/wolverhampton","WWW.UCAS.COM","90.00","24+ Advanced Learning Loan","8220","Services - Fees and Charges","07/12/2016"
"Wolverhampton City Council","http://opendatacommunities.org/id/metropolitan-district-council/wolverhampton","WWW.PAYOCS.CO.UK","203.61","Education Business Partnership","7349","Catering","07/12/2016"
"Wolverhampton City Council","http://opendatacommunities.org/id/metropolitan-district-council/wolverhampton","WOLVERHAMPTON TROPHY C","93.75","Education Business Partnership","5999","Equipment - Purchase","07/12/2016"
"Wolverhampton City Council","http://opendatacommunities.org/id/metropolitan-district-council/wolverhampton","SETON","243.80","Car Parks Operational Staff","5099","R&M - Departmental planned (external)","07/12/2016"
"Wolverhampton City Council","http://opendatacommunities.org/id/metropolitan-district-council/wolverhampton","ASDA SUPERSTORE","17.97","Civic Centre Catering","5411","Provisions (Not for resale)","07/12/2016"
"Wolverhampton City Council","http://opendatacommunities.org/id/metropolitan-district-council/wolverhampton","WEST COAST TRAINS","165.00","AES Staff Development","4112","Public Transport","07/12/2016"
"Wolverhampton City Council","http://opendatacommunities.org/id/metropolitan-district-council/wolverhampton","Trainline","57.07","AES Staff Development","4112","Public Transport","07/12/2016"
"Wolverhampton City Council","http://opendatacommunities.org/id/metropolitan-district-council/wolverhampton","Trainline","67.22","AES Staff Development","4112","Public Transport","07/12/2016"
"Wolverhampton City Council","http://opendatacommunities.org/id/metropolitan-district-council/wolverhampton","RICS COM GBP CYBS","165.00","Central Training","8699","Training Expenses","07/12/2016"
"Wolverhampton City Council","http://opendatacommunities.org/id/metropolitan-district-council/wolverhampton","GRO HM PASSPORT OFFICE","23.40","Head of Service - CINCP","9399","Services - Professional Fees","07/12/2016"
"Wolverhampton City Council","http://opendatacommunities.org/id/metropolitan-district-council/wolverhampton","GRO HM PASSPORT OFFICE","46.80","Head of Service - CINCP","9399","Services - Professional Fees","07/12/2016"
"Wolverhampton City Council","http://opendatacommunities.org/id/metropolitan-district-council/wolverhampton","POST OFFICE COUNTER","7.25","Legal Services","9402","Comms - Postage","07/12/2016"
"Wolverhampton City Council","http://opendatacommunities.org/id/metropolitan-district-council/wolverhampton","TWINKL LTD","39.99","SEN Early Years Team","8699","Subscriptions","07/12/2016"
"Wolverhampton City Council","http://opendatacommunities.org/id/metropolitan-district-council/wolverhampton","TWINKL LTD","39.99","SEN Early Years Team","8699","Subscriptions","07/12/2016"
"Wolverhampton City Council","http://opendatacommunities.org/id/metropolitan-district-council/wolverhampton","G & M HALE (SUNDRIES)","41.32","Discretionary Fund","5992","Materials","07/12/2016"
"Wolverhampton City Council","http://opendatacommunities.org/id/metropolitan-district-council/wolverhampton","G & M HALE LTD","9.00","Creative Studies Delivery Area","5992","Materials for resale","07/12/2016"
"Wolverhampton City Council","http://opendatacommunities.org/id/metropolitan-district-council/wolverhampton","G & M HALE LTD","58.20","Discretionary Fund","5992","Materials","07/12/2016"
"Wolverhampton City Council","http://opendatacommunities.org/id/metropolitan-district-council/wolverhampton","Amazon UK Marketplace","17.80","Northicote Farm","5942","Materials","07/12/2016"
"Wolverhampton City Council","http://opendatacommunities.org/id/metropolitan-district-council/wolverhampton","Amazon EU","61.46","Towers Outdoor Education Centre","5969","Equipment - Purchase","06/12/2016"
"Wolverhampton City Council","http://opendatacommunities.org/id/metropolitan-district-council/wolverhampton","123 REG R/T","27.96","Technical Support","5968","Subscriptions","06/12/2016"
"Wolverhampton City Council","http://opendatacommunities.org/id/metropolitan-district-council/wolverhampton","Amazon UK Marketplace","6.98","Global Budgets","5942","Books","06/12/2016"
"Wolverhampton City Council","http://opendatacommunities.org/id/metropolitan-district-council/wolverhampton","ASDA HOME SHOPPING","-0.16","Ernest Bold Court","5411","Provisions (Not for resale)","06/12/2016"
"Wolverhampton City Council","http://opendatacommunities.org/id/metropolitan-district-council/wolverhampton","W M MORRISON PLC","13.93","Ernest Bold Court","5411","Provisions (Not for resale)","06/12/2016"
"Wolverhampton City Council","http://opendatacommunities.org/id/metropolitan-district-council/wolverhampton","ASDA HOME SHOPPING","78.40","Ernest Bold Court","5411","Provisions (Not for resale)","06/12/2016"
"Wolverhampton City Council","http://opendatacommunities.org/id/metropolitan-district-council/wolverhampton","Amazon UK Marketplace","3.99","Members Expenses","5942","Equipment - Purchase","06/12/2016"
"Wolverhampton City Council","http://opendatacommunities.org/id/metropolitan-district-council/wolverhampton","PONY EXPRESS UK LTD","85.00","Future Space Decant Area","4215","Comms - Postage","06/12/2016"
"Wolverhampton City Council","http://opendatacommunities.org/id/metropolitan-district-council/wolverhampton","ARGOS LTD","16.99","CIN/CP S17 SW Unit - Area 7","5310","Equipment - Purchase","06/12/2016"
"Wolverhampton City Council","http://opendatacommunities.org/id/metropolitan-district-council/wolverhampton","WWW.THELAWSOCIETY.ORG","322.00","Legal Services","8699","Subscriptions","06/12/2016"
"Wolverhampton City Council","http://opendatacommunities.org/id/metropolitan-district-council/wolverhampton","SUITES AND BEDS","133.33","EIP Locality 3","5712","Equipment - Purchase","06/12/2016"
"Wolverhampton City Council","http://opendatacommunities.org/id/metropolitan-district-council/wolverhampton","WOLVERHAMPTON CITY COU","199.00","CIN/CP S17 SW Unit - Area 1","9399","Rent","06/12/2016"
"Wolverhampton City Council","http://opendatacommunities.org/id/metropolitan-district-council/wolverhampton","ARGOS RETAIL GROUP","105.78","EIP Locality 4","5310","Grant Payments","06/12/2016"
"Wolverhampton City Council","http://opendatacommunities.org/id/metropolitan-district-council/wolverhampton","ARGOS RETAIL GROUP","62.46","EIP Locality 4","5310","Grant Payments","06/12/2016"
"Wolverhampton City Council","http://opendatacommunities.org/id/metropolitan-district-council/wolverhampton","ARGOS RETAIL GROUP","54.87","EIP Locality 4","5310","Grant Payments","06/12/2016"
"Wolverhampton City Council","http://opendatacommunities.org/id/metropolitan-district-council/wolverhampton","ARGOS RETAIL GROUP","58.32","EIP Locality 4","5310","Grant Payments","06/12/2016"
"Wolverhampton City Council","http://opendatacommunities.org/id/metropolitan-district-council/wolverhampton","ARGOS LTD","16.66","EIP Locality 4","5310","Grant Payments","06/12/2016"
"Wolverhampton City Council","http://opendatacommunities.org/id/metropolitan-district-council/wolverhampton","EASYJET","125.20","LAC Transitions Team","3245","Client Allowances","06/12/2016"
"Wolverhampton City Council","http://opendatacommunities.org/id/metropolitan-district-council/wolverhampton","B&M RETAIL","31.25","Aldersley Leisure Village","5310","Equipment - Purchase","06/12/2016"
"Wolverhampton City Council","http://opendatacommunities.org/id/metropolitan-district-council/wolverhampton","B&M RETAIL","37.50","Aldersley Leisure Village","5310","Equipment - Purchase","06/12/2016"
"Wolverhampton City Council","http://opendatacommunities.org/id/metropolitan-district-council/wolverhampton","DUDLEY MBC  INTERN","10.12","LAC Team","8999","Financial Assistance In Exceptional Circ","06/12/2016"
"Wolverhampton City Council","http://opendatacommunities.org/id/metropolitan-district-council/wolverhampton","PEMBS CC","10.50","LAC Team","9399","Financial Assistance In Exceptional Circ","06/12/2016"
"Wolverhampton City Council","http://opendatacommunities.org/id/metropolitan-district-council/wolverhampton","HMCOURTS-SERVICE.G","20.00","Mental Health Assessment & Care Mgmt","9222","Services - Fees and Charges","06/12/2016"
"Wolverhampton City Council","http://opendatacommunities.org/id/metropolitan-district-council/wolverhampton","W M MORRISONS.COM","175.10","Discretionary Fund","5411","Materials","06/12/2016"
"Wolverhampton City Council","http://opendatacommunities.org/id/metropolitan-district-council/wolverhampton","WOLVERHAMPTON CITY COU","111.20","CIN/CP S17 SW Unit - Area 1","9399","Rent","06/12/2016"
"Wolverhampton City Council","http://opendatacommunities.org/id/metropolitan-district-council/wolverhampton","Trainline","224.91","Adoption and Residence Team & Allowances","4112","Public Transport","06/12/2016"
"Wolverhampton City Council","http://opendatacommunities.org/id/metropolitan-district-council/wolverhampton","Virgin Trains","10.70","Information Governance Team","4112","Public Transport","06/12/2016"
"Wolverhampton City Council","http://opendatacommunities.org/id/metropolitan-district-council/wolverhampton","Amazon UK Marketplace","13.63","Northicote Farm","5942","Materials","06/12/2016"
"Wolverhampton City Council","http://opendatacommunities.org/id/metropolitan-district-council/wolverhampton","AMAZON UK RETAIL AMAZO","52.48","Headstart Wolverhampton","5999","Equipment - Purchase","06/12/2016"
"Wolverhampton City Council","http://opendatacommunities.org/id/metropolitan-district-council/wolverhampton","Amazon UK Marketplace","90.29","Headstart Wolverhampton","5942","Books","06/12/2016"
"Wolverhampton City Council","http://opendatacommunities.org/id/metropolitan-district-council/wolverhampton","Amazon Svcs Europe,SAR","7.99","Headstart Wolverhampton","5942","Books","06/12/2016"
"Wolverhampton City Council","http://opendatacommunities.org/id/metropolitan-district-council/wolverhampton","Amazon UK Marketplace","5.96","Headstart Phase 3","5942","Equipment - Purchase","06/12/2016"
"Wolverhampton City Council","http://opendatacommunities.org/id/metropolitan-district-council/wolverhampton","Trainline","82.31","CIN/CP S17 SW Unit - Area 2","4112","Public Transport","06/12/2016"
"Wolverhampton City Council","http://opendatacommunities.org/id/metropolitan-district-council/wolverhampton","THE SPRINGHILL","145.20","Parent / Partnership Service","5812","Educ Trips, Holidays, Outings, Activity","06/12/2016"
"Wolverhampton City Council","http://opendatacommunities.org/id/metropolitan-district-council/wolverhampton","CARVER/WOLVERHAMPTON/L","18.90","Priory Green","5211","R&M - Departmental planned (external)","06/12/2016"
"Wolverhampton City Council","http://opendatacommunities.org/id/metropolitan-district-council/wolverhampton","B&M RETAIL","49.87","EIP Locality 1","5310","Equipment - Purchase","06/12/2016"
"Wolverhampton City Council","http://opendatacommunities.org/id/metropolitan-district-council/wolverhampton","E01224000000000","120.00","EIP Locality 2","6011","Financial Assistance In Exceptional Circ","06/12/2016"
"Wolverhampton City Council","http://opendatacommunities.org/id/metropolitan-district-council/wolverhampton","SAINSBURYS","50.00","Duke Street Bungalows","6011","Financial Assistance In Exceptional Circ","06/12/2016"
"Wolverhampton City Council","http://opendatacommunities.org/id/metropolitan-district-council/wolverhampton","SAINSBURYS","50.00","Duke Street Bungalows","6011","Financial Assistance In Exceptional Circ","06/12/2016"
"Wolverhampton City Council","http://opendatacommunities.org/id/metropolitan-district-council/wolverhampton","SAINSBURYS","50.00","Duke Street Bungalows","6011","Financial Assistance In Exceptional Circ","06/12/2016"
"Wolverhampton City Council","http://opendatacommunities.org/id/metropolitan-district-council/wolverhampton","UNTOUCHABLES","52.08","Cemeteries","5231","Materials","05/12/2016"
"Wolverhampton City Council","http://opendatacommunities.org/id/metropolitan-district-council/wolverhampton","HOLLYBUSH NURSERIES LT","99.97","Cemeteries","5261","Equipment - Purchase","05/12/2016"
"Wolverhampton City Council","http://opendatacommunities.org/id/metropolitan-district-council/wolverhampton","Amazon UK Marketplace","13.98","SWP - Infrastructure","5942","Books","05/12/2016"
"Wolverhampton City Council","http://opendatacommunities.org/id/metropolitan-district-council/wolverhampton","ARGOS RETAIL GROUP","197.49","LAC Transitions Team","5310","Client Allowances","05/12/2016"
"Wolverhampton City Council","http://opendatacommunities.org/id/metropolitan-district-council/wolverhampton","CPC","9.11","Strategic ICTS (ICT Serv Budget)","5065","Equipment - R & M","05/12/2016"
"Wolverhampton City Council","http://opendatacommunities.org/id/metropolitan-district-council/wolverhampton","CPC","9.11","Strategic ICTS (ICT Serv Budget)","5065","Equipment - R & M","05/12/2016"
"Wolverhampton City Council","http://opendatacommunities.org/id/metropolitan-district-council/wolverhampton","AMAZON UK RETAIL AMAZO","15.48","Strategic ICTS (ICT Serv Budget)","5999","Equipment - Purchase","05/12/2016"
"Wolverhampton City Council","http://opendatacommunities.org/id/metropolitan-district-council/wolverhampton","ARGOS RETAIL GROUP","109.96","LAC Transitions Team","5310","Client Allowances","05/12/2016"
"Wolverhampton City Council","http://opendatacommunities.org/id/metropolitan-district-council/wolverhampton","ARGOS RETAIL GROUP","44.95","Central Baths","5310","Equipment - Purchase","05/12/2016"
"Wolverhampton City Council","http://opendatacommunities.org/id/metropolitan-district-council/wolverhampton","TWITTER ADVERTISING","25.00","Communications & Marketing - General","7311","Marketing \ Non-staff advertising","05/12/2016"
"Wolverhampton City Council","http://opendatacommunities.org/id/metropolitan-district-council/wolverhampton","Amazon UK Marketplace","182.14","Communications & Marketing - General","5942","Equipment - Purchase","05/12/2016"
"Wolverhampton City Council","http://opendatacommunities.org/id/metropolitan-district-council/wolverhampton","BOOTS,WORCESTER","8.37","Ernest Bold Court","5912","Equipment - Health and Safety","05/12/2016"
"Wolverhampton City Council","http://opendatacommunities.org/id/metropolitan-district-council/wolverhampton","B&M RETAIL LTD","8.98","Ernest Bold Court","5310","Equipment - Purchase","05/12/2016"
"Wolverhampton City Council","http://opendatacommunities.org/id/metropolitan-district-council/wolverhampton","Amazon UK Marketplace","50.00","Headstart Wolverhampton","5942","Books","05/12/2016"
"Wolverhampton City Council","http://opendatacommunities.org/id/metropolitan-district-council/wolverhampton","AMAZON UK RETAIL AMAZO","11.11","Headstart Wolverhampton","5999","Equipment - Purchase","05/12/2016"
"Wolverhampton City Council","http://opendatacommunities.org/id/metropolitan-district-council/wolverhampton","Amazon UK Marketplace","9.98","Headstart Wolverhampton","5942","Books","05/12/2016"
"Wolverhampton City Council","http://opendatacommunities.org/id/metropolitan-district-council/wolverhampton","THE YORK HOTEL","240.00","CIN/CP S17 SW Unit - Area 5","7011","Services - Supplies & Services to users","05/12/2016"
"Wolverhampton City Council","http://opendatacommunities.org/id/metropolitan-district-council/wolverhampton","Virgin Trains","158.50","Housing Regeneration - Strategy & Dev","4112","Public Transport","05/12/2016"
"Wolverhampton City Council","http://opendatacommunities.org/id/metropolitan-district-council/wolverhampton","E00783400000000","100.00","EIP Locality 1","6011","Equipment - Purchase","05/12/2016"
"Wolverhampton City Council","http://opendatacommunities.org/id/metropolitan-district-council/wolverhampton","GO OUTDOORS","31.50","Condition Surveys","5941","Equipment - Purchase","05/12/2016"
"Wolverhampton City Council","http://opendatacommunities.org/id/metropolitan-district-council/wolverhampton","ARGOS DIRECT","-49.97","EIP Locality 2","5964","Equipment - Purchase","05/12/2016"
"Wolverhampton City Council","http://opendatacommunities.org/id/metropolitan-district-council/wolverhampton","BOOKWHEN","9.00","Craftplay","7372","Computing - Purchase of Software","05/12/2016"
"Wolverhampton City Council","http://opendatacommunities.org/id/metropolitan-district-council/wolverhampton","AMAZON UK RETAIL AMAZO","9.98","Global Budgets","5999","Books","05/12/2016"
"Wolverhampton City Council","http://opendatacommunities.org/id/metropolitan-district-council/wolverhampton","HUGHES","96.00","EIP Locality 3","5732","Equipment - Purchase","05/12/2016"
"Wolverhampton City Council","http://opendatacommunities.org/id/metropolitan-district-council/wolverhampton","ASDA HOME SHOPPING","-2.73","Ernest Bold Court","5411","Provisions (Not for resale)","05/12/2016"
"Wolverhampton City Council","http://opendatacommunities.org/id/metropolitan-district-council/wolverhampton","ASDA HOME SHOPPING","102.39","Ernest Bold Court","5411","Provisions (Not for resale)","05/12/2016"
"Wolverhampton City Council","http://opendatacommunities.org/id/metropolitan-district-council/wolverhampton","HALES SAWMILLS LTD","201.93","Play General","5261","Equipment - Purchase","05/12/2016"
"Wolverhampton City Council","http://opendatacommunities.org/id/metropolitan-district-council/wolverhampton","THE QUALITY HOTEL WOLV","65.00","CIN/CP S17 SW Unit - Area 5","7011","Accommodation Costs","05/12/2016"
"Wolverhampton City Council","http://opendatacommunities.org/id/metropolitan-district-council/wolverhampton","ARGOS LTD","64.12","LAC Transitions Team","5310","Client Allowances","05/12/2016"
"Wolverhampton City Council","http://opendatacommunities.org/id/metropolitan-district-council/wolverhampton","WWW.PPLUK.COM","306.20","Civic Halls Non Direct Management A/C","8699","Services - General Licences","05/12/2016"
"Wolverhampton City Council","http://opendatacommunities.org/id/metropolitan-district-council/wolverhampton","NOVOTEL HOTELS","50.00","The Little Civic","3642","Services - Professional Fees","05/12/2016"
"Wolverhampton City Council","http://opendatacommunities.org/id/metropolitan-district-council/wolverhampton","REGISTRARS OFFICE","11.00","CIN/CP S17 SW Unit - Area 7","8299","Training Expenses","05/12/2016"
"Wolverhampton City Council","http://opendatacommunities.org/id/metropolitan-district-council/wolverhampton","THE COAL AUTHORITY","90.00","Disposal Costs","9399","Services - Professional Fees","05/12/2016"
"Wolverhampton City Council","http://opendatacommunities.org/id/metropolitan-district-council/wolverhampton","WM MORRISON FOOD.COM","202.69","Upper Pendeford Farm Childrens Home","5411","Provisions (Not for resale)","05/12/2016"
"Wolverhampton City Council","http://opendatacommunities.org/id/metropolitan-district-council/wolverhampton","AMAZON UK RETAIL AMAZO","15.21","Children & Family Contact Services","5999","Equipment - Purchase","05/12/2016"
"Wolverhampton City Council","http://opendatacommunities.org/id/metropolitan-district-council/wolverhampton","Amazon EU","11.88","Children & Family Contact Services","5969","Equipment - Purchase","05/12/2016"
"Wolverhampton City Council","http://opendatacommunities.org/id/metropolitan-district-council/wolverhampton","Amazon EU","14.55","Children & Family Contact Services","5969","Equipment - Purchase","05/12/2016"
"Wolverhampton City Council","http://opendatacommunities.org/id/metropolitan-district-council/wolverhampton","Amazon UK Marketplace","65.94","Children & Family Contact Services","5942","Equipment - Purchase","05/12/2016"
"Wolverhampton City Council","http://opendatacommunities.org/id/metropolitan-district-council/wolverhampton","Cross Country Trains","91.40","School Improvement","4112","Public Transport","05/12/2016"
"Wolverhampton City Council","http://opendatacommunities.org/id/metropolitan-district-council/wolverhampton","SAINSBURYS PFS (1340)","53.09","Mayoral Expenses","5541","Petrol","05/12/2016"
"Wolverhampton City Council","http://opendatacommunities.org/id/metropolitan-district-council/wolverhampton","Amazon UK Marketplace","18.74","Fleet Management","5942","Equipment - Purchase","05/12/2016"
"Wolverhampton City Council","http://opendatacommunities.org/id/metropolitan-district-council/wolverhampton","KIDDICARE","166.62","CIN/CP S17 SW Unit - Area 8","5719","Equipment - Purchase","05/12/2016"
"Wolverhampton City Council","http://opendatacommunities.org/id/metropolitan-district-council/wolverhampton","SETON","5.97","Technician","5099","Equipment - Purchase","05/12/2016"
"Wolverhampton City Council","http://opendatacommunities.org/id/metropolitan-district-council/wolverhampton","SETON","5.97","Technician","5099","Equipment - Purchase","05/12/2016"
"Wolverhampton City Council","http://opendatacommunities.org/id/metropolitan-district-council/wolverhampton","Trainline","28.00","CIN/CP S17 SW Unit - Area 8","4112","Public Transport","05/12/2016"
"Wolverhampton City Council","http://opendatacommunities.org/id/metropolitan-district-council/wolverhampton","HMCOURTS-SERVICE.G","20.00","Mental Health Assessment & Care Mgmt","9222","Services - Fees and Charges","05/12/2016"
"Wolverhampton City Council","http://opendatacommunities.org/id/metropolitan-district-council/wolverhampton","UXPIN.com, +4869493995","96.95","City Direct","7372","Computing - Purchase of Software","05/12/2016"
"Wolverhampton City Council","http://opendatacommunities.org/id/metropolitan-district-council/wolverhampton","ASDA HOME SHOPPING","-11.00","EIP Locality 8","5411","Grant Payments","05/12/2016"
"Wolverhampton City Council","http://opendatacommunities.org/id/metropolitan-district-council/wolverhampton","ASDA HOME SHOPPING","49.93","EIP Locality 8","5411","Grant Payments","05/12/2016"
"Wolverhampton City Council","http://opendatacommunities.org/id/metropolitan-district-council/wolverhampton","SETON","0.01","Technician","5099","Equipment - Purchase","05/12/2016"
"Wolverhampton City Council","http://opendatacommunities.org/id/metropolitan-district-council/wolverhampton","SETON","33.90","Technician","5099","Equipment - Purchase","05/12/2016"
"Wolverhampton City Council","http://opendatacommunities.org/id/metropolitan-district-council/wolverhampton","Virgintrains.co.uk","-149.30","Mayoral Expenses","4112","Public Transport","05/12/2016"
"Wolverhampton City Council","http://opendatacommunities.org/id/metropolitan-district-council/wolverhampton","Virgin Trains","294.50","Members Expenses","4112","Public Transport","05/12/2016"
"Wolverhampton City Council","http://opendatacommunities.org/id/metropolitan-district-council/wolverhampton","SCREWFIX DIRECT","41.63","Public Conveniences","5211","Materials","02/12/2016"
"Wolverhampton City Council","http://opendatacommunities.org/id/metropolitan-district-council/wolverhampton","Virgin Trains","193.20","Corporate Procurement Unit","4112","Public Transport","02/12/2016"
"Wolverhampton City Council","http://opendatacommunities.org/id/metropolitan-district-council/wolverhampton","Amazon UK Marketplace","35.64","Aldersley Leisure Village","5942","Equipment - Purchase","02/12/2016"
"Wolverhampton City Council","http://opendatacommunities.org/id/metropolitan-district-council/wolverhampton","PREMIER INN","122.98","LAC Team","3811","Services - Supplies & Services to users","02/12/2016"
"Wolverhampton City Council","http://opendatacommunities.org/id/metropolitan-district-council/wolverhampton","THE YORK HOTEL","41.67","Emergency Duty Team","7011","Services - Supplies & Services to users","02/12/2016"
"Wolverhampton City Council","http://opendatacommunities.org/id/metropolitan-district-council/wolverhampton","REGISTRARS OFFICE","10.00","CIN/CP S17 SW Unit - Area 3","8299","Stationery","02/12/2016"
"Wolverhampton City Council","http://opendatacommunities.org/id/metropolitan-district-council/wolverhampton","ARGOS RETAIL GROUP","38.95","EIP Locality 1","5310","Financial Assistance In Exceptional Circ","02/12/2016"
"Wolverhampton City Council","http://opendatacommunities.org/id/metropolitan-district-council/wolverhampton","PARTS.HOTPOINT.CO.UK","-26.99","Duke Street Bungalows","5999","Catering","02/12/2016"
"Wolverhampton City Council","http://opendatacommunities.org/id/metropolitan-district-council/wolverhampton","AMAZON UK RETAIL AMAZO","19.20","Towers Outdoor Education Centre","5999","Equipment - Purchase","02/12/2016"
"Wolverhampton City Council","http://opendatacommunities.org/id/metropolitan-district-council/wolverhampton","B&M RETAIL","-36.20","Civic Centre","5310","Equipment - Purchase","02/12/2016"
"Wolverhampton City Council","http://opendatacommunities.org/id/metropolitan-district-council/wolverhampton","B&M RETAIL LTD","8.68","Civic Centre","5310","Equipment - Purchase","02/12/2016"
"Wolverhampton City Council","http://opendatacommunities.org/id/metropolitan-district-council/wolverhampton","THE RANGE","9.97","Civic Centre","5311","Equipment - Purchase","02/12/2016"
"Wolverhampton City Council","http://opendatacommunities.org/id/metropolitan-district-council/wolverhampton","Wix.com","46.57","Technical Support","5817","Computing - Purchase of Software","02/12/2016"
"Wolverhampton City Council","http://opendatacommunities.org/id/metropolitan-district-council/wolverhampton","Wix.com","46.57","Technical Support","5817","Computing - Purchase of Software","02/12/2016"
"Wolverhampton City Council","http://opendatacommunities.org/id/metropolitan-district-council/wolverhampton","THE QUALITY HOTEL WOLV","48.33","Head of Service - CINCP","7011","Services - Supplies & Services to users","02/12/2016"
"Wolverhampton City Council","http://opendatacommunities.org/id/metropolitan-district-council/wolverhampton","WICKES","83.28","Play General","5211","Materials","02/12/2016"
"Wolverhampton City Council","http://opendatacommunities.org/id/metropolitan-district-council/wolverhampton","WAYFAIR STORES LIM","146.63","CIN/CP S17 SW Unit - Area 5","5965","Equipment - Purchase","02/12/2016"
"Wolverhampton City Council","http://opendatacommunities.org/id/metropolitan-district-council/wolverhampton","Trainline","409.43","Head of Assets","4112","Public Transport","02/12/2016"
"Wolverhampton City Council","http://opendatacommunities.org/id/metropolitan-district-council/wolverhampton","BT BILL PAYMENT 1","340.07","Bantock House Museum","4812","Comms - Telephone Rental","02/12/2016"
"Wolverhampton City Council","http://opendatacommunities.org/id/metropolitan-district-council/wolverhampton","EE & T-MOBILE","143.70","Civic Halls Non Direct Management A/C","4814","Comms - Mobile Telephones","02/12/2016"
"Wolverhampton City Council","http://opendatacommunities.org/id/metropolitan-district-council/wolverhampton","GOOGLE  SVCSAPPS_wolve","2.97","Civic Halls Non Direct Management A/C","5968","Computing - Consumables","02/12/2016"
"Wolverhampton City Council","http://opendatacommunities.org/id/metropolitan-district-council/wolverhampton","EE LIMITED R501","10.00","School Crossing Patrol","4812","Comms - Mobile Telephones","02/12/2016"
"Wolverhampton City Council","http://opendatacommunities.org/id/metropolitan-district-council/wolverhampton","TVLICENSING.CO.UK","145.50","Civic Centre","7392","Services - Consultants","02/12/2016"
"Wolverhampton City Council","http://opendatacommunities.org/id/metropolitan-district-council/wolverhampton","WWW.VIKING-DIRECT.CO.U","18.89","Welfare Rights","5111","Stationery","02/12/2016"
"Wolverhampton City Council","http://opendatacommunities.org/id/metropolitan-district-council/wolverhampton","LAW SOCIETY FINANC","390.72","Legal Services","8641","Educ Trips, Holidays, Outings, Activity","02/12/2016"
"Wolverhampton City Council","http://opendatacommunities.org/id/metropolitan-district-council/wolverhampton","Amazon EU","43.35","Legal Services","5969","Equipment - Purchase","02/12/2016"
"Wolverhampton City Council","http://opendatacommunities.org/id/metropolitan-district-council/wolverhampton","GRO HM PASSPORT OFFICE","23.40","Legal Services","9399","Services - Fees and Charges","02/12/2016"
"Wolverhampton City Council","http://opendatacommunities.org/id/metropolitan-district-council/wolverhampton","Amazon UK Marketplace","10.08","Legal Services","5942","Books","02/12/2016"
"Wolverhampton City Council","http://opendatacommunities.org/id/metropolitan-district-council/wolverhampton","B&M RETAIL","20.82","Children & Family Contact Services","5310","Equipment - Purchase","02/12/2016"
"Wolverhampton City Council","http://opendatacommunities.org/id/metropolitan-district-council/wolverhampton","PETS AT HOME LTD","12.56","Children & Family Contact Services","5995","Equipment - Purchase","02/12/2016"
"Wolverhampton City Council","http://opendatacommunities.org/id/metropolitan-district-council/wolverhampton","ASDA SUPERSTORE","25.00","Ernest Bold Court","5411","Equipment - Health and Safety","02/12/2016"
"Wolverhampton City Council","http://opendatacommunities.org/id/metropolitan-district-council/wolverhampton","TYLERS OF BILSTON","166.66","CIN/CP S17 SW Unit - Area 1","5732","Equipment - Purchase","02/12/2016"
"Wolverhampton City Council","http://opendatacommunities.org/id/metropolitan-district-council/wolverhampton","NOTEMACHINE","250.00","CIN/CP S17 SW Unit - Area 6","6011","Financial Assistance In Exceptional Circ","02/12/2016"
"Wolverhampton City Council","http://opendatacommunities.org/id/metropolitan-district-council/wolverhampton","SCREWFIX DIRECT","87.86","Technician","5211","Materials","02/12/2016"
"Wolverhampton City Council","http://opendatacommunities.org/id/metropolitan-district-council/wolverhampton","SETON","11.95","Technician","5099","Equipment - Purchase","02/12/2016"
"Wolverhampton City Council","http://opendatacommunities.org/id/metropolitan-district-council/wolverhampton","Amazon UK Marketplace","13.98","SWP - Infrastructure","5942","Books","01/12/2016"
"Wolverhampton City Council","http://opendatacommunities.org/id/metropolitan-district-council/wolverhampton","Amazon UK Marketplace","3.50","SWP - Infrastructure","5942","Equipment - Purchase","01/12/2016"
"Wolverhampton City Council","http://opendatacommunities.org/id/metropolitan-district-council/wolverhampton","Amazon EU","153.08","Strategic ICTS (ICT Serv Budget)","5969","Computing - Purchase of Hardware","01/12/2016"
"Wolverhampton City Council","http://opendatacommunities.org/id/metropolitan-district-council/wolverhampton","ARGOS RETAIL GROUP","23.94","CIN/CP S17 SW Unit - Area 3","5310","Equipment - Purchase","01/12/2016"
"Wolverhampton City Council","http://opendatacommunities.org/id/metropolitan-district-council/wolverhampton","FACEBK XVEAFBJAR2","199.94","Communications & Marketing - General","7311","Marketing \ Non-staff advertising","01/12/2016"
"Wolverhampton City Council","http://opendatacommunities.org/id/metropolitan-district-council/wolverhampton","FACEBK SCUAT9NA92","378.40","Communications & Marketing - General","7311","Marketing \ Non-staff advertising","01/12/2016"
"Wolverhampton City Council","http://opendatacommunities.org/id/metropolitan-district-council/wolverhampton","Virgin Trains","384.00","Planning","4112","Public Transport","01/12/2016"
"Wolverhampton City Council","http://opendatacommunities.org/id/metropolitan-district-council/wolverhampton","WWW.ISTOCK.COM","260.83","Communications & Marketing - General","5971","Services - Professional Fees","01/12/2016"
"Wolverhampton City Council","http://opendatacommunities.org/id/metropolitan-district-council/wolverhampton","FACEBK WHJ7V96A82","12.34","Communications & Marketing - General","7311","Marketing \ Non-staff advertising","01/12/2016"
"Wolverhampton City Council","http://opendatacommunities.org/id/metropolitan-district-council/wolverhampton","FACEBK VHJ7V96A82","27.66","WV Active Business Support","7311","Marketing \ Non-staff advertising","01/12/2016"
"Wolverhampton City Council","http://opendatacommunities.org/id/metropolitan-district-council/wolverhampton","E01510300000000","120.00","Emergency Duty Team","6011","Financial Assistance In Exceptional Circ","01/12/2016"
"Wolverhampton City Council","http://opendatacommunities.org/id/metropolitan-district-council/wolverhampton","BRITANNIA","292.00","No Recourse to Public Funds - CIN/CP","7011","Accommodation Costs","01/12/2016"
"Wolverhampton City Council","http://opendatacommunities.org/id/metropolitan-district-council/wolverhampton","ARGOS LTD","22.98","Wolverhampton Indoor and Open Market","5310","Equipment - Purchase","01/12/2016"
"Wolverhampton City Council","http://opendatacommunities.org/id/metropolitan-district-council/wolverhampton","Virgintrains.co.uk","-21.00","Private Sector Housing","4112","Public Transport","01/12/2016"
"Wolverhampton City Council","http://opendatacommunities.org/id/metropolitan-district-council/wolverhampton","WICKES BUILDING","74.57","Technical Support","5211","Materials","01/12/2016"
"Wolverhampton City Council","http://opendatacommunities.org/id/metropolitan-district-council/wolverhampton","FACEBK WUG74ASC22","23.33","College of Further Education","7311","Marketing \ Non-staff advertising","01/12/2016"
"Wolverhampton City Council","http://opendatacommunities.org/id/metropolitan-district-council/wolverhampton","FACEBK NUG74ASC22","170.34","College of Further Education","7311","Marketing \ Non-staff advertising","01/12/2016"
"Wolverhampton City Council","http://opendatacommunities.org/id/metropolitan-district-council/wolverhampton","SPORTSDIRECT.COM","6.74","Play General","5941","Equipment - Purchase","01/12/2016"
"Wolverhampton City Council","http://opendatacommunities.org/id/metropolitan-district-council/wolverhampton","FACEBK YYXZY9SE92","57.72","Civic Halls Non Direct Management A/C","7311","Marketing \ Non-staff advertising","01/12/2016"
"Wolverhampton City Council","http://opendatacommunities.org/id/metropolitan-district-council/wolverhampton","ARGOS RETAIL GROUP","45.36","CIN/CP S17 SW Unit - Area 4","5310","Equipment - Purchase","01/12/2016"
"Wolverhampton City Council","http://opendatacommunities.org/id/metropolitan-district-council/wolverhampton","VUE NCS CITB HS&E TEST","19.50","Property Services - Commissioning","8299","Training Expenses","01/12/2016"
"Wolverhampton City Council","http://opendatacommunities.org/id/metropolitan-district-council/wolverhampton","WWW.SOLACE.ORG.UK","118.80","School Improvement","8699","Subscriptions","01/12/2016"
"Wolverhampton City Council","http://opendatacommunities.org/id/metropolitan-district-council/wolverhampton","Amazon UK Marketplace","14.91","Patching","5942","Materials","01/12/2016"
"Wolverhampton City Council","http://opendatacommunities.org/id/metropolitan-district-council/wolverhampton","PREMIER INN","125.98","Childrens with Disabilities Team","3811","Training Expenses","01/12/2016"
"Wolverhampton City Council","http://opendatacommunities.org/id/metropolitan-district-council/wolverhampton","HSE BOOKS (MAIL ORDER)","24.00","HR Advice","9399","Books","01/12/2016"
"Wolverhampton City Council","http://opendatacommunities.org/id/metropolitan-district-council/wolverhampton","PREMIER INN","79.99","Adoption and Residence Team & Allowances","3811","Services - Supplies & Services to users","01/12/2016"
"Wolverhampton City Council","http://opendatacommunities.org/id/metropolitan-district-council/wolverhampton","LION PICTURE FRAMING S","179.80","Collections & Conservation","5999","Equipment - Purchase","01/12/2016"
"Wolverhampton City Council","http://opendatacommunities.org/id/metropolitan-district-council/wolverhampton","LION PICTURE FRAMING S","265.75","Technical Material","5999","Equipment - Purchase","01/12/2016"
"Wolverhampton City Council","http://opendatacommunities.org/id/metropolitan-district-council/wolverhampton","NETWORK WEST MIDLANDS","25.50","CIN/CP S17 SW Unit - Area 5","9399","Services - Fees and Charges","01/12/2016"
"Wolverhampton City Council","http://opendatacommunities.org/id/metropolitan-district-council/wolverhampton","CITY PAGES","500.00","Art Gallery","7311","Marketing \ Non-staff advertising","01/12/2016"
